Workbook

Sheet CATALOGO FTOP202111
A1: H. XVI AYUNTAMIENTO DE LA PAZ
B2: DIRECCION GENERAL DE OBRAS PUBLICAS Y ASENTAMIENTOS HUMANOS
B3: DIRECCION DE OBRAS PUBLICAS
B5: CATALOGO DE CONCEPTOS
A8: OBRA: PAVIMENTACION DE LA 2DA ETAPA CON CONCRETO HIDRAULICO DE LA CALLE TOPETE TRAMO DE CALLE HORIZONTE A CALLE BENITO JUAREZ, EN TODOS SANTOS, B.C.S.
A9: CLAVE: FTOP202111
A10: CLAVE | B10: DESCRIPCION | C10: UNIDAD | D10: CANTIDAD | E10: PRECIO UNITARIO | F10: PRECIO UNITARIO CON LETRA | G10: IMPORTE
A12: I.-TRABAJOS PRELIMINARES
A13: 1 | B13: DEMOLICION DE GUARNICIONES DE CONCRETO EXISTENTES POR ENCONTRARSE EN MALAS CONDICIONES Y/O NO DAR LOS NIVELES DE PROYECTO. INCLUYE: CORTE CON CORTADORA DE DISCO, CARGA Y RETIRO DE ESCOMBRO FUERA DE LA OBRA HASTA EL LUGAR INDICADO POR LA SUPERVISION, LA MANO DE OBRA, HERRAMIENTA Y EQUIPO NECESARIO. | C13: ML | D13: 30 | G13: =ROUND(D13*E13,2) -> 0
A14: 2 | B14: DEMOLICION DE BANQUETAS Y/O RAMPAS DE CONCRETO EXISTENTES POR ENCONTRARSE EN MALAS CONDICIONES Y/O NO DAR LOS NIVELES DE PROYECTO . INCLUYE: CORTE CON CORTADORA DE DISCO, LIMPIEZA, CARGA Y RETIRO DE ESCOMBRO FUERA DE LA OBRA HASTA EL LUGAR INDICADO POR LA SUPERVISION, LA MANO DE OBRA, HERRAMIENTA Y EQUIPO NECESARIO. | C14: M2 | D14: =(1.35*28.83)+(1.18*26)+(1.45*10)+(2.05*34)+(2.9*46.3) -> 288.0705 | G14: =ROUND(D14*E14,2) -> 0
A15: 3 | B15: DEMOLICION DE BANQUETAS Y/O RAMPAS DE MAMPOSTERIA EXISTENTES PARA COLOCACION DE ALUMBRADO PUBLICO. INCLUYE: CORTE CON CORTADORA DE DISCO, LIMPIEZA, CARGA Y ACOPIO DE PIEDRA PARA SU REUTILIZACION DENTRO DE LA OBRA HASTA EL LUGAR INDICADO POR LA SUPERVISION, LA MANO DE OBRA, HERRAMIENTA Y EQUIPO NECESARIO. | C15: M2 | D15: =(((1.25*1.5)+(1.55*1.5))*5)+25.512 -> 46.512 | G15: =ROUND(D15*E15,2) -> 0
A16: 4 | B16: DEMOLICIÓN POR MEDIOS MANUALES Y/O MECÁNICOS DE PAVIMENTO ASFALTICO, EXISTENTE EN MAL ESTADO DE HASTA 10 CM DE ESPESOR (INCLUYENDO LA EXTRACCIÓN, ACOPIO, CARGA Y ACARREOS DE LOS MATERIALES PRODUCTO DE LA DEMOLICIÓN, FUERA DE LA OBRA HASTA EL TIRADERO AUTORIZADO, SEGÚN LO INDIQUE LA SUPERVISIÓN). LA RECUPERACIÓN DE LA BASE HIDRÁULICA EXISTENTE DE HASTA 20 CMS DE ESPESOR COMPACTOS APROXIMADOS. INCLUYE: BARRIDO Y LIMPIEZA PREVIA (RETIRO DE LOS MATERIALES FUERA DE LA OBRA), DISGREGADO, ACAMELLONADO, CARGA Y ACARREOS DEL MATERIAL DE BASE HIDRÁULICA RECUPERADO, FUERA DE LA OBRA HASTA DONDE LO INDIQUE LA SUPERVISIÓN, PARA SU ALMACENAJE Y POSTERIOR REUTILIZACIÓN, EN ZONAS DE CRUCEROS CON OTRAS AVENIDAS REALIZAR EL CORTE PREVIO CON DISCO DE 3 MM. (1/8”) DE ANCHO, CON CORTADORA EN PAVIMENTO DE CONCRETO HIDRÁULICO Y/O ASFALTO, PARA EL PERFILADO DE LOSAS EN BOCACALLES, LOS MATERIALES, LA MANO DE OBRA, HERRAMIENTA Y EQUIPO NECESARIO. | C16: M2 | D16: 1893.93 | G16: =ROUND(D16*E16,2) -> 0
A17: 5 | B17: DEMOLICIÓN POR MEDIOS MANUALES Y/O MECÁNICOS DE PAVIMENTO DE HIDRAULICO (SIMPLE O REFORZADO), EXISTENTE EN MAL ESTADO DE HASTA 20 CM DE ESPESOR (INCLUYENDO LA EXTRACCIÓN, ACOPIO, CARGA Y ACARREOS DE LOS MATERIALES PRODUCTO DE LA DEMOLICIÓN, FUERA DE LA OBRA HASTA EL TIRADERO AUTORIZADO, SEGÚN LO INDIQUE LA SUPERVISIÓN). LA RECUPERACIÓN DE LA BASE HIDRÁULICA EXISTENTE DE HASTA 20 CMS DE ESPESOR COMPACTOS APROXIMADOS. INCLUYE: BARRIDO Y LIMPIEZA PREVIA (RETIRO DE LOS MATERIALES FUERA DE LA OBRA), DISGREGADO, ACAMELLONADO, CARGA Y ACARREOS DEL MATERIAL DE BASE HIDRÁULICA RECUPERADO, FUERA DE LA OBRA HASTA DONDE LO INDIQUE LA SUPERVISIÓN, PARA SU ALMACENAJE Y POSTERIOR REUTILIZACIÓN, EN ZONAS DE CRUCEROS CON OTRAS AVENIDAS REALIZAR EL CORTE PREVIO CON DISCO DE 3 MM. (1/8”) DE ANCHO, CON CORTADORA EN PAVIMENTO DE CONCRETO HIDRÁULICO Y/O ASFALTO, PARA EL PERFILADO DE LOSAS EN BOCACALLES, LOS MATERIALES, LA MANO DE OBRA, HERRAMIENTA Y EQUIPO NECESARIO. | C17: M3 | D17: 210.44 | G17: =ROUND(D17*E17,2) -> 0
F18: SUB TOTAL : PRELIMINARES EN SEÑALAMIENTO | G18: =SUM(G13:G17) -> 0
A19: II.- GUARNICIONES
A20: 6 | B20: GUARNICION DE CONCRETO F´c=150 kg/cm2. R.N. T.M.A. 19 MM. DE 15X20X40 CM DE SECCION TRAPEZOIDAL, CON JUNTAS DE EXPANSION A CADA 4.50 M. CON CARTON ASFALTADO DE 3/8" DE ESPESOR. INCLUYE: CIMBRA, DESCIMBRADO, ELABORACION, COLADO, VIBRADO Y CURADO DEL CONCRETO, TRANSPORTE A LA SIGUIENTE POSICION, MATERIALES, MANO DE OBRA Y HERRAMIENTA. | C20: ML | D20: =40+60 -> 100 | G20: =ROUND(D20*E20,2) -> 0
F21: SUB TOTAL GUARNICIONES | G21: =SUM(G20:G20) -> 0
A22: III.- CONSTRUCCION DE BANQUETAS
A23: 7 | B23: EXCAVACION EN CORTE EN MATERIAL INVESTIGADO EN OBRA, EN AREAS DE BANQUETAS, GUARNICIONES, RAMPAS Y ADYACENTES, PARA DAR NIVELES DE PROYECTO. INCLUYE: TRAZO Y NIVELACION, CARGA, ACARREOS DENTRO Y FUERA DE LA OBRA DEL MATERIAL NO UTILIZABLE HASTA EL LUGAR INDICADO POR SUPERVISION, LA MANO DE OBRA, HERRAMIENTA Y EQUIPO NECESARIO. | C23: M3 | D23: =(475*0.4)*0.6 -> 114 | G23: =ROUND(D23*E23,2) -> 0
A24: 8 | B24: RELLENO COMPACTADO CON EQUIPO MECANICO CON MATERIAL SELECCIONADO PRODUCTO DE BANCO, LIBRE DE BOLEO MAYOR DE 3", EN CAPAS DE 20 CM, COMPACTADO AL 85% PROCTOR, EN AREAS DE BANQUETAS Y ADYACENTES, PARA DAR NIVELES DE PROYECTO, SEGUN INDICACIONES DE SUPERVISION. INCLUYE: CRIBADO DEL MATERIAL, ACARREOS DENTRO DE LA OBRA, INCORPORACION DE HUMEDAD, MANO DE OBRA, HERRAMIENTA Y EQUIPO NECESARIO. | C24: M3 | D24: =(475*0.2)*0.4 -> 38 | G24: 0
A25: 9 | B25: CONSTRUCCION DE BANQUETAS DE 8 CM DE ESPESOR, ACABADO, ESTAMPADO EN COLOR GRIS NATURAL CON APLICACION DE SELLADOR , EN LOSAS DE 1.50 M DE ANCHO EN PROMEDIO, SE USARA EL SISTEMA DE LOSAS INTERCALADAS CON UNA RELACION LARGO/ANCHO DE HASTA 1.25, JUNTAS FRIAS ACABADO CON VOLTEADOR. EL CONCRETO SERA F´c= 150 KG/CM2. T.M.A. 3/4". REV. DE 8 A 10 CM PREMEZCLADO ELABORADO EN PLANTA, REFORZADO CON MALLA ELECTRO SOLDADA 6-6/10X10INCLUYE: SUMINISTRO, COLADO, EXTENDIDO, VIBRADO Y ACARREOS DEL CONCRETO, DESMOLDANTE, SUMINISTRO Y APLICACIÓN DE CURACRETO EN COLOR BLANCO MARCA PASA O SIKA, CON EL EQUIPO ADECUADO, Y EN LA PROPORCION INDICADA POR EL FABRICANTE, LIMPIEZA PARA APLICACION DE SELLADOR Y/O ACIDO PARA DECOLORCION, CIMBRA EN FRONTERAS, NIVELACION, AFINE, COMPACTACION AL 95 % EN UN ESPESOR DE 15 CM Y PREPARACION DE LA SUPERFICIE DEL TERRENO, ACARREOS DE LOS MATERIALES DENTRO DE LA OBRA, LIMPIEZA GENERAL ANTES Y UNA VEZ CONCLUIDOS LOS TRABAJOS, CARGA Y ACARREO DE LOS MATERIALES NO UTILIZABLES HASTA EL LUGAR INDICADO POR SUPERVISION, TRAZO Y NIVELACION, LOS MATERIALES, MANO DE OBRA, HERRAMIENTA Y EQUIPO NECESARIO.. | C25: M2 | D25: =290-(25*2.05)-(5*2.9)+((23.5-(2*3))*2.9)+((52.3-(3*3))*1.3)+((40-(3*3))*1.2) -> 368.49 | G25: 0
A26: 10 | B26: CONSTRUCCION DE BANQUETAS DE 8 CM DE ESPESOR ARMADA CON MALLA-LAC 6x6-10/10, ACABADO, PULIDO Y RAYADO ESCOBILLADO, EN LOSAS DE 1.50 M DE ANCHO EN PROMEDIO, SE USARA EL SISTEMA DE LOSAS INTERCALADAS CON UNA RELACION LARGO/ANCHO DE HASTA 1.50, JUNTAS FRIAS ACABADO CON VOLTEADOR. EL CONCRETO SERA F´c= 150 KG/CM2. T.M.A. 3/4". REV. DE 8 A 10 CM PREMEZCLADO ELABORADO EN PLANTA, INCLUYE: REFORZADO CON MALLA ELECTROSOLDADA 6-6/10-10, CIMBRA APARENTE EN FRONTERA, SUMINISTRO DE MATERIALES, COLADO, EXTENDIDO, VIBRADO Y ACARREOS DEL CONCRETO, SUMINISTRO Y APLICACIÓN DE CURACRETO EN COLOR BLANCO MARCA PASA, SIKA O SIMILAR EN CALIDAD Y PRECIO, CON EL EQUIPO ADECUADO, Y EN LA PROPORCION INDICADA POR EL FABRICANTE, CIMBRA EN FRONTERAS, NIVELACION, AFINE, COMPACTACION AL 95 % EN UN ESPESOR DE 15 CM Y PREPARACION DE LA SUPERFICIE DEL TERRENO, ACARREOS DE LOS MATERIALES DENTRO DE LA OBRA, LIMPIEZA GENERAL ANTES Y UNA VEZ CONCLUIDOS LOS TRABAJOS, CARGA Y ACARREO DE LOS MATERIALES NO UTILIZABLES HASTA EL LUGAR INDICADO POR SUPERVISION, TRAZO Y NIVELACION, LOS MATERIALES, MANO DE OBRA, HERRAMIENTA Y EQUIPO NECESARIO. P.U.O.T.NOTA: EL LICITANTE DEBERA DE CONSIDERAR LAS PRUEBAS DE LABORATORIO RESPECTIVAS EFECTUADAS POR UN LABORATORIO EXTERNO AL MISMO Y PRESENTARSE AL MOMENTO DE REALIZAR EL TRAMITE PARA EL PAGO DE ESTIMACIONES | C26: M2 | D26: 60 | G26: 0
A27: 11 | B27: CONSTRUCCION DE BANQUETAS DE 10 CM DE ESPESOR, ACABADO, ESTAMPADO EN COLOR GRIS NATURAL CON APLICACION DE SELLADOR , EN LOSAS DE 1.50 M DE ANCHO EN PROMEDIO, SE USARA EL SISTEMA DE LOSAS INTERCALADAS CON UNA RELACION LARGO/ANCHO DE HASTA 1.25, JUNTAS FRIAS ACABADO CON VOLTEADOR. EL CONCRETO SERA F´c= 200 KG/CM2. T.M.A. 3/4". REV. DE 8 A 10 CM PREMEZCLADO ELABORADO EN PLANTA, REFORZADO CON MALLA ELECTRO SOLDADA 6-6/10X10 INCLUYE: SUMINISTRO, COLADO, EXTENDIDO, VIBRADO Y ACARREOS DEL CONCRETO, DESMOLDANTE, SUMINISTRO Y APLICACIÓN DE CURACRETO EN COLOR BLANCO MARCA PASA O SIKA, CON EL EQUIPO ADECUADO, Y EN LA PROPORCION INDICADA POR EL FABRICANTE, LIMPIEZA PARA APLICACION DE SELLADOR Y/O ACIDO PARA DECOLORCION, CIMBRA EN FRONTERAS, NIVELACION, AFINE, COMPACTACION AL 95 % EN UN ESPESOR DE 15 CM Y PREPARACION DE LA SUPERFICIE DEL TERRENO, ACARREOS DE LOS MATERIALES DENTRO DE LA OBRA, LIMPIEZA GENERAL ANTES Y UNA VEZ CONCLUIDOS LOS TRABAJOS, CARGA Y ACARREO DE LOS MATERIALES NO UTILIZABLES HASTA EL LUGAR INDICADO POR SUPERVISION, TRAZO Y NIVELACION, LOS MATERIALES, MANO DE OBRA, HERRAMIENTA Y EQUIPO NECESARIO.. | C27: M2 | D27: =(25*2.05)+(5*2.9)+((2*3)*2.9)+((3*3)*1.3)+((3*3)*1.2) -> 105.65 | G27: 0
A28: 12 | B28: FABRICACION DE RAMPAS PARA EL ACCESO DE PERSONAS CON CAPACIDADES DIFERENTES, DE CONCRETO DE 8 CM DE ESPESOR Y CON UNA PENDIENTE MAXIMA DEL 8%, ACABADO PULIDO Y RAYADO TRANSVERSAL CON PEINE METALICO PARA DAR ACABADO ANTIDERRAPANTE, EN LOSAS DE 1.20 M. DE ANCHO COMO MINIMO. CON BORDES LATERALES DE 10 CM DE ALTURA Y 10 CM DE ANCHO DE CONCRETO, EN EL DESARROLLO LONGITUDINAL DE LA RAMPA, ACABADO EN ARISTAS CON VOLTEADOR. EL CONCRETO SERA F´c=150 KG/CM2. T.M.A. 3/4". REV. DE 8 A 10 CM. PREMEZCLADO ELABORADO EN PLANTA. INCLUYE: SUMINISTRO, COLADO, EXTENDIDO, VIBRADO Y ACARREOS DEL CONCRETO, SUMINISTRO Y APLICACION DE CURACRETO EN COLOR BLANCO MARCA PASA O SIKA, CON EL EQUIPO ADECUADO, Y EN LA PROPORCION INDICADA POR EL FABRICANTE, CIMBRA EN FRONTERAS, NIVELACION, AFINE, COMPACTACION AL 95 % EN UN ESPESOR DE 15 CM Y PREPARACION DE LA SUPERFICIE DEL TERRENO, ACARREOS DE LOS MATERIALES DENTRO DE LA OBRA, LIMPIEZA GENERAL ANTES Y UNA VEZ CONCLUIDOS LOS TRABAJOS, CARGA Y ACARREOS DE LOS MATERIALES NO UTILIZABLES HASTA EL LUGAR INDICADO POR SUPERVISION, TRAZO Y NIVELACION, MATERIALES, MANO DE OBRA, HERRAMIENTA Y EQUIPO NECESARIO. U.O.T. (NOTA: EL LICITANTE DEBERA DE CONSIDERAR LAS PRUEBAS DE LABORATORIO RESPECTIVAS, EFECTUADAS POR UN LABORATORIO EXTERNO AL MISMO Y PRESENTARSE AL MOMENTO DE REALIZAR EL TRAMITE PARA EL PAGO DE ESTIMACIONES). | C28: M2 | D28: 36 | G28: 0
A29: 13 | B29: CONSTRUCCION DE BANQUETA A BASE DE EMPEDRADO CON PRODUCTO RECUPERADO DE LA DEMOLICION EN AREAS PARA LUMINARIAS, TOMAS Y REGISTROS, ACENTADO Y EMBOQUILLADO CON MORTERO CEMENTO-ARENA PROPORCIÓN DE 1:3, INCLUYE MATERIALES MANOS DE OBRA HERRAMIENTA Y EQUIPO MENOR. | C29: M2 | D29: =((1.25*1.5)+(1.55*1.5))*5 -> 21 | G29: 0
F30: SUB TOTAL CONSTRUCCION DE BANQUETAS | G30: =SUM(G23:G29) -> 0
A31: IV.- RED DE AGUA POTABLE
A32: 14 | B32: TRAZO Y NIVELACION DE RED GENERAL DE AGUA POTABLE CON APARATOS TOPOGRAFICOS DE PRECISION, ESTABLECIENDO NIVELES Y REFERENCIAS, AL INICIO Y DURANTE EL PROCESO DE LA OBRA INCLUYE: ESTACAS, MOJONERAS, BANCO DE NIVEL, MATERIALES, MANO DE OBRA, EQUIPO Y HERRAMIENTA. | C32: ML | D32: 262 | G32: =ROUND(D32*E32,2) -> 0
A33: =A32+1 -> 15 | B33: EXCAVACION POR MEDIOS MECANICOS DE ZANJAS EN MATERIAL TIPO "II" DE 0 A 2 MTS. DE PROFUNDIDAD, INCLUYE: EQUIPO, HERRAMIENTA, MANO DE OBRA Y MATERIALES. | C33: M3 | D33: =262*0.7*1 -> 183.4 | G33: =ROUND(D33*E33,2) -> 0
A34: =A33+1 -> 16 | B34: SUMINISTRO Y COLOCACION DE TUBO DE PVC HIDRAULICO SERIE INGLESA RD 32.5 DE 6" (150 MM) DE DIAMETRO, INCLUYE: AFINE DE FONDO Y TALUDES DE CEPAS, COMPACTACION DE FONDO EN ZANJAS, SUMINISTRO Y COLOCACION DE CAMA DE ARENA, NIVELACION DE TUBERIA PARA DAR PENDIENTES DE PROYECTO, SUMINISTRO Y COLOCACION DE CINTA DE PRECAUCION O PELIGRO, ACOSTILLADO, MATERIALES, MANO DE OBRA, EQUIPO Y HERRAMIENTA. | C34: ML | D34: 275 | G34: =ROUND(D34*E34,2) -> 0
A35: 17 | B35: SUMINISTRO E INSTALACION DE JUNTA GIBAUL DE 6" DE DIAMETRO SEGÚN TUBERIA EXISTENTE PARA INTERCONEXION DE LINEA DE CONDUCCION DE AGUA POTABLE. INCLUYE: MANIOBRAS, INSTALACION, LIMPIEZA, PRUEBA HIDRAULICA, MANO DE OBRA Y HERRAMIENTA. | C35: PZA | D35: 2 | G35: 0
A36: 18 | B36: SUMINISTRO Y COLOCACION DE EXTREMIDAD ESPIGA DE PVC HIDRAULICO DE 6" (150 MM), INCLUYE: MATERIALES, MANO DE OBRA, HERRAMIENTA Y EQUIPO. | C36: PZA | D36: 1 | G36: 0
A37: 19 | B37: SUMINISTRO Y COLOCACION DE VALVULA DE SECCIONAMIENTO TIPO COMPUERTA DE VASTAGO FIJO DE 6" (150 MM), INCLUYE: MANO DE OBRA, EQUIPO, MATERIALES Y HERRAMIENTA. | C37: PZA | D37: 1 | G37: 0
A38: 20 | B38: SUMINISTRO Y COLOCACION DE EXTREMIDAD CAMPANA DE PVC HIDRAULICO DE 6" (150 MM), INCLUYE: MATERIALES, MANO DE OBRA, HERRAMIENTA Y EQUIPO. | C38: PZA | D38: 1 | G38: 0
A39: 21 | B39: SUMINISTRO Y COLOCACION DE TORNILLOS CON CABEZA Y TUERCA HEXAGONAL DE 5/8" x 2 1/2", INCLUYE: MANO DE OBRA, MATERIALES, EQUIPO Y HERRAMIENTA. | C39: PZA | D39: 24 | G39: 0
A40: 22 | B40: SUMINISTRO Y COLOCACION DE EMPAQUES DE NEOPRENO DE 6" (150MM) INCLUYE: MATERIALES, MANO DE OBRA, EQUIPO Y HERRAMIENTA. | C40: PZA | D40: 2 | G40: 0
A41: 23 | B41: CONSTRUCCION DE CAJA DE OPERACION DE VALVULAS TIPO 12 DE 1.48X1.48 A BASE DE FIRME DE CONCRETO ARMADO, MUROS DE BLOCK 12X20X40CM, APLANADO CEMENTO-ARENA 1:3, Y LOSA DE CONCRETO ARMADO, INCLUYE: EXACAVACION, AFINE DE FONDO, RELLENO, MATERIALES, MANO DE OBRA, HERRAMIENTA Y EQUIPO. | C41: PZA | D41: 1 | G41: =ROUND(D41*E41,2) -> 0
A42: 24 | B42: FABRICACION DE BROCAL Y COLOCACION DE LOSA TAPA PARA CAJA DE OPERACIÓN DE VALVULAS CON TAPA Fo. Fo. VALIDADA POR SAPA. CENTRADA PARA CAJA TIPO 12, INCLUYE: MATERIALES, MANO DE OBRA, EQUIPO Y HERRAMIENTA. | C42: PZA | D42: 3 | G42: =ROUND(D42*E42,2) -> 0
A43: 25 | B43: SUMINISTRO Y COLOCACION DE TUBO DE PVC HIDRAULICO SERIE INGLESA RD 32.5 DE 3" (75 MM) DE DIAMETRO, INCLUYE: AFINE DE FONDO Y TALUDES DE CEPAS, COMPACTACION DE FONDO EN ZANJAS, SUMINISTRO Y COLOCACION DE CAMA DE ARENA, NIVELACION DE TUBERIA PARA DAR PENDIENTES DE PROYECTO, SUMINISTRO Y COLOCACION DE CINTA DE PRECAUCION O PELIGRO, MATERIALES, MANO DE OBRA, EQUIPO Y HERRAMIENTA. | C43: ML | D43: =D34 -> 275 | G43: 0
A44: 26 | B44: SUMINISTRO E INSTALACION DE JUNTA GIBAUL DE 3" DE DIAMETRO SEGÚN TUBERIA EXISTENTE PARA INTERCONEXION DE LINEA DE CONDUCCION DE AGUA POTABLE. INCLUYE: MANIOBRAS, INSTALACION, LIMPIEZA, PRUEBA HIDRAULICA, MANO DE OBRA Y HERRAMIENTA. | C44: PZA | D44: 2 | G44: 0
A45: 27 | B45: SUMINISTRO Y COLOCACION DE EXTREMIDAD ESPIGA DE PVC HIDRAULICO DE 3" (75 MM), INCLUYE: MATERIALES, MANO DE OBRA, HERRAMIENTA Y EQUIPO. | C45: PZA | D45: 3 | G45: 0
A46: 28 | B46: SUMINISTRO Y COLOCACION DE VALVULA DE SECCIONAMIENTO TIPO COMPUERTA DE VASTAGO FIJO DE 3" (75 MM), INCLUYE: MANO DE OBRA, EQUIPO, MATERIALES Y HERRAMIENTA. | C46: PZA | D46: 3 | G46: 0
A47: 29 | B47: FABRICACION DE BROCAL Y COLOCACION DE LOSA TAPA PARA CAJA DE OPERACIÓN DE VALVULAS CON TAPA Fo. Fo. VALIDADA POR SAPA. CENTRADA PARA CAJA TIPO 2, INCLUYE: MATERIALES, MANO DE OBRA, EQUIPO Y HERRAMIENTA. | C47: PZA | D47: 3 | G47: 0
A48: 30 | B48: CONSTRUCCION DE CAJA DE OPERACIÓN DE VALVULAS DE TIPO 2 DE 1.28 x 1.18 M A BASE DE FIRME DE CONCRETO ARMADO, MUROS DE TABIQUE 5 x 12 x 24 CM, APLANADO INTERIOR CEMENO-ARENA 1:3, Y LOSA DE CONCRETO ARMADO, INCLUYE: EXCAVACION, AFINE DE FONDO, RELLENO, MATERIALES, MANO DE OBRA, HERRAMIENTA Y EQUIPO. | C48: PZA | D48: 3 | G48: 0
A49: 31 | B49: SUMINISTRO Y COLADO DE CONCRETO PARA ATRAQUES EN CAMBIOS DE DIRECCION O CRUCEROS, INCLUYE: CIMBRA COMUN, MATERIALES, MANO DE OBRA, HERRRAMIENTA Y EQUIPO. | C49: M3 | D49: =0.3*0.6*0.6*10 -> 1.08 | G49: 0
A50: 32 | B50: SUMINISTRO Y COLOCACION DE TORNILLOS CON CABEZA Y TUERCA HEXAGONAL DE 5/8" x 2 1/2", INCLUYE: MANO DE OBRA, MATERIALES, EQUIPO Y HERRAMIENTA. | C50: PZA | D50: =16*3 -> 48 | G50: 0
A51: 33 | B51: RELLENO COMPACTADO CON EQUIPO MECANICO MANUAL EN CAPAS DE 20 CM EN CEPA CON MATERIAL SELECCIONADO PRODUCTO DE LA EXCAVACION (CRIBADO POR LA MALLA DE 2 1/2") LIBRE DE BOLEO MAYOR DE 3" , COMPACTADO AL 90% PROCTOR. INCLUYE: CRIBADO DEL MATERIAL, ACARREOS DENTRO DE LA OBRA, INCORPORACION DE HUMEDAD, MANO DE OBRA, HERRAMIENTA Y EQUIPO NECESARIO. | C51: M3 | D51: 84 | G51: 0
A52: 34 | B52: RELLENO COMPACTADO CON EQUIPO MECANICO MANUAL EN CAPAS DE 20 CM EN CEPA CON MATERIAL SELECCIONADO PRODUCTO DE BANCO LIBRE DE BOLEO MAYOR DE 3" , COMPACTADO AL 90% PROCTOR. INCLUYE: CRIBADO DEL MATERIAL, ACARREOS DENTRO DE LA OBRA, INCORPORACION DE HUMEDAD, MANO DE OBRA, HERRAMIENTA Y EQUIPO NECESARIO. | C52: M3 | D52: 36 | G52: 0
A53: 35 | B53: CARGA MECANICA Y ACARREO DE MATERIAL PRODUCTO DE LA EXCAVACION DENTRO DE OBRA DE LA RED GENERAL DE AGUA POTABLE , INCLUYE: MANO DE OBRA, EQUIPO Y HERRAMIENTA. (INTERNO) | C53: M3 | D53: 65 | G53: 0
A54: 36 | B54: SUMINISTRO Y COLOCACION DE TEE DE PVC HIDRAULICO DE 3" x 3" (75 x 75 MM), INCLUYE: MATERIALES, MANO DE OBRA, HERRAMIENTA Y EQUIPO. | C54: PZA | D54: 2 | G54: 0
A55: 37 | B55: SUMINISTRO Y COLOCACION DE CODO DE PVC HIDRAULICO DE 90X3", INCLUYE: MATERIALES, MANO DE OBRA, EQUIPO Y HERRAMIENTA | C55: PZA | D55: 1 | G55: 0
A56: 38 | B56: SUMINISTRO Y COLOCACION DE EXTREMIDAD CAMPANA DE PVC HIDRAULICO DE 3"(75MM), INCLUYE: MATERIALES, MANO DE OBRA, HERRAMIENTA Y EQUIPO. | C56: PZA | D56: 1 | G56: 0
A57: 39 | B57: SUMINISTRO Y COLOCACION DE EMPAQUES DE NEOPRENO DE 3" (100MM) INCLUYE: MATERIALES, MANO DE OBRA, EQUIPO Y HERRAMIENTA. | C57: PZA | D57: =3*2 -> 6 | G57: 0
A58: 40 | B58: CONSTRUCCION DE ATRAQUES DE CONCRETO F´C=200 KG/CM2, PARA TUBO DE 60X60X30 CM, INCLUYE: MATERIAL, MANO DE OBRA, EQUIPO Y HERRAMIENTA | C58: M3 | D58: 1 | G58: 0
A59: 41 | B59: CARGA Y ACARREO POR MEDIOS MECANICOS DEL MATERIAL PRODUCTO DE EXCAVACION NO UTILIZABLE PARA EL PRIMER KILOMETRO DE DISTANCIA. INCLUYE EL EQUIPO NECESARIO. | C59: M3 | D59: =D33*0.25 -> 45.85 | G59: 0
A60: 42 | B60: ACARREO EN CAMION DEL MATERIAL PRODUCTO DEL CORTE PARA KILOMETROS SUBSECUENTES. (6 KM). INCLUYE: EL EQUIPO NECESARIO. | C60: M3-KM | D60: =D59*6 -> 275.1 | G60: 0
F61: SUB TOTAL RED DE AGUA POTABLE | G61: =SUM(G32:G60) -> 0
A62: V.- TOMAS DOMICILIARIAS
A63: 43 | B63: EXCAVACION POR MEDIOS MECANICOS DE ZANJAS EN MATERIAL TIPO "II" DE 0 A 2 MTS. DE PROFUNDIDAD, INCLUYE: EQUIPO, HERRAMIENTA, MANO DE OBRA Y MATERIALES. | C63: M3 | D63: 103.6 | G63: =ROUND(D63*E63,2) -> 0
A64: 44 | B64: "TOMA DE AGUA POTABLE DE 4""x1/2"" CON TUBO KITEC DE 1/2"" DE DIAMETRO. INCLUYE: ABRAZADERA DE PVC TIPO-II. C/VALVULA DE INSER.Y SACABOCADO INTEGRADO FLOTAP DE 3""x3/4"", REDUCCION DE 3/4"" A 1/2"", INSERTOS Y CONECTORES PARA KITEC, TUBO KITEC DE 1/2"" DE DIAM. VALVULA DE ANGULO TIPO BOLA, VALVULA MUNICIPAL DE BLOQUEO SENCILLO, CAJA DE PROTECCION DE PVC DE COLOR NEGRO REFORZADA DE 5 KG DE PESO (CON UNA RESISTENCIA MAXMA DE 4000 KG); CON LAS SIGUIENTES MEDIDAS: EN LA PARTE SUPERIOR DE 34x21 CM. Y BASE DE 42x30 CM. (INCLUYE CEJA PERIMETRAL DE 1.5 CM DE ANCHO Y 2.5 CM DE ESPESOR). CON ALTURA TOTAL DE 18.50 CM. OLOCADA SOBRE PLANTILLA DE MORTERO DE CEMENTO-ARENA 1:3 DE 6 CM DE ESPESOR, REVIO EL NIVELADO Y COMPACTACION DEL TERRENO NATURAL.MATERIALES, MANO DE OBRA Y HERRAMIENTA. PARA RED DE AGUA POTABLE DE PVC HIDRAULICO DE 4"" ( 101 MM) DE DIAMETRO.SONDEOS PARA LOCALIZACION DE LA TOMA, DEMOLICIONES NECESARIAS PARA SU INSTALACION, REPARACION PROVISIONAL DE TOMA DOMICILIARIA; INTERCONEXIONES EN TUBO DE COBRE, MANGUERA HIDRAULICA Y/O P.V.C. HIDRAULICO CED. 40 SEGUN SEA EL CASO. U.O.T.(LONGITUD DE 8.00 M)" | C64: PZA | D64: 12 | G64: =ROUND(D64*E64,2) -> 0
A65: 45 | B65: "TOMA DE AGUA POTABLE DE 4""x1/2"" CON TUBO KITEC DE 1/2"" DE DIAMETRO. INCLUYE: ABRAZADERA DE PVC TIPO-II. C/VALVULA DE INSER.Y SACABOCADO INTEGRADO FLOTAP DE 3""x3/4"", EDUCCION DE 3/4"" A 1/2"", INSERTOS Y CONECTORES PARA KITEC, TUBO KITEC DE 1/2"" DE DIAM. VALVULA DE ANGULO TIPO BOLA, VALVULA MUNICIPAL DE BLOQUEO SENCILLO, CAJA DE PROTECCION DE PVC DE COLOR NEGRO REFORZADA DE 5 KG DE PESO (CON UNA RESISTENCIA MAXMA DE 4000 KG); CON LAS SIGUIENTES MEDIDAS: EN LA PARTE SUPERIOR DE 34x21 CM. Y BASE DE 42x30 CM. (INCLUYE CEJA PERIMETRAL DE 1.5 CM DE ANCHO Y 2.5 CM DE ESPESOR). CON ALTURA TOTAL DE 18.50 CM. COLOCADA SOBRE PLANTILLA DE MORTERO DE CEMENTO-ARENA 1:3 DE 6 CM DE ESPESOR, PREVIO EL NIVELADO Y COMPACTACION DEL TERRENO NATURAL. MATERIALES, MANO DE OBRA Y HERRAMIENTA. PARA RED DE AGUA POTABLE DE PVC HIDRAULICO DE 4"" ( 101 MM) DE DIAMETRO.SONDEOS PARA LOCALIZACION DE LA TOMA, DEMOLICIONES NECESARIAS PARA SU INSTALACION, REPARACION PROVISIONAL DE TOMA DOMICILIARIA; INTERCONEXIONES EN TUBO DE COBRE, MANGUERA HIDRAULICA Y/O P.V.C. HIDRAULICO CED. 40 SEGUN SEA EL CASO. U.O.T.(LONGITUD DE 4.00 M)" | C65: PZA | D65: 13 | G65: 0
A66: 46 | B66: RELLENO COMPACTADO CON EQUIPO MECANICO MANUAL EN CAPAS DE 20 CM EN CEPA CON MATERIAL SELECCIONADO PRODUCTO DE LA EXCAVACION (CRIBADO POR LA MALLA DE 2 1/2") LIBRE DE BOLEO MAYOR DE 3" , COMPACTADO AL 90% PROCTOR. INCLUYE: CRIBADO DEL MATERIAL, ACARREOS DENTRO DE LA OBRA, INCORPORACION DE HUMEDAD, MANO DE OBRA, HERRAMIENTA Y EQUIPO NECESARIO. | C66: M3 | D66: 82.88 | G66: 0
A67: 47 | B67: RELLENO COMPACTADO CON EQUIPO MECANICO MANUAL EN CAPAS DE 20 CM EN CEPA CON MATERIAL SELECCIONADO PRODUCTO DE BANCO LIBRE DE BOLEO MAYOR DE 3" , COMPACTADO AL 90% PROCTOR. INCLUYE: CRIBADO DEL MATERIAL, ACARREOS DENTRO DE LA OBRA, INCORPORACION DE HUMEDAD, MANO DE OBRA, HERRAMIENTA Y EQUIPO NECESARIO. | C67: M3 | D67: 20.72 | G67: 0
A68: 48 | B68: CARGA MECANICA Y ACARREO DE MATERIAL PRODUCTO DE LA EXCAVACION DE LA RED GENERAL DE ALCANTARILLADO SANITARIO | C68: M3 | D68: 20.72 | G68: 0
A69: 49 | B69: COLOCACION DE DETALLADO DE CUADRO DE MEDICION DE AGUA POTABLE, INLCLUYE: MATERIALES, MANO DE OBRA, EQUIPO Y HERRAMIENTA. | C69: PZA | D69: 25 | G69: 0
F70: SUB TOTAL TOMAS DOMICILIARIAS | G70: =SUM(G63:G69) -> 0
A71: VI.- RED DE ALCANTARILLADO SANITARIO
A72: 50 | B72: TRAZO Y NIVELACION DE RED GENERAL DE ALCANTARILLADO SANITARIO CON APARATOS TOPOGRAFICOS DE PRECISION, ESTABLECIENDO NIVELES Y REFERENCIAS, AL INICIO Y DURANTE EL PROCESO DE LA OBRA INCLUYE: ESTACAS, MOJONERAS, BANCO DE NIVEL, MATERIALES, MANO DE OBRA, EQUIPO Y HERRAMIENTA. | C72: ML | D72: 262 | G72: =ROUND(D72*E72,2) -> 0
A73: 51 | B73: EXCAVACION POR MEDIOS MECANICOS DE ZANJAS EN MATERIAL TIPO "II" DE 0 A 2 MTS. DE PROFUNDIDAD, INCLUYE: EQUIPO, HERRAMIENTA, MANO DE OBRA Y MATERIALES. | C73: M3 | D73: =262*0.8*1.2 -> 251.52 | G73: 0
A74: 52 | B74: SUMINISTRO Y COLOCACIÓN DE TUBERÍA DE PVC SANITARIO RD-35 DE 8" DE DIAMETRO (200 MM), INCLUYE: AFINE DE FONDO Y TALUDES DE CEPAS, COMPACTACION DE FONDO EN ZANJAS, SUMINISTRO Y COLOCACION DE CAMA DE ARENA, NIVELACION DE TUBERIA PARA DAR PENDIENTES DE PROYECTO,ACOSTILLADO, SUMINISTRO Y COLOCACION DE CINTA DE PRECAUCION O PELIGRO, MATERIALES, MANO DE OBRA, HERRAMIENTA Y EQUIPO. | C74: ML | D74: =D72 -> 262 | G74: 0
A75: 53 | B75: RELLENO COMPACTADO CON EQUIPO MECANICO MANUAL EN CAPAS DE 20 CM EN CEPA CON MATERIAL SELECCIONADO PRODUCTO DE LA EXCAVACION (CRIBADO POR LA MALLA DE 2 1/2") LIBRE DE BOLEO MAYOR DE 3" , COMPACTADO AL 90% PROCTOR. INCLUYE: CRIBADO DEL MATERIAL, ACARREOS DENTRO DE LA OBRA, INCORPORACION DE HUMEDAD, MANO DE OBRA, HERRAMIENTA Y EQUIPO NECESARIO. | C75: M3 | D75: =+D72*0.75 -> 196.5 | G75: 0
A76: 54 | B76: RELLENO COMPACTADO CON EQUIPO MECANICO MANUAL EN CAPAS DE 20 CM EN CEPA CON MATERIAL SELECCIONADO PRODUCTO DE BANCO LIBRE DE BOLEO MAYOR DE 3" , COMPACTADO AL 90% PROCTOR. INCLUYE: CRIBADO DEL MATERIAL, ACARREOS DENTRO DE LA OBRA, INCORPORACION DE HUMEDAD, MANO DE OBRA, HERRAMIENTA Y EQUIPO NECESARIO. | C76: M3 | D76: =+D72*0.25 -> 65.5 | G76: 0
A77: 55 | B77: CARGA MECANICA Y ACARREO DE MATERIAL PRODUCTO DE LA EXCAVACION DE LA RED GENERAL DE ALCANTARILLADO SANITARIO | C77: M3 | D77: =+D76 -> 65.5 | G77: 0
A78: 56 | B78: CONSTRUCCION DE POZO DE VISITA DE ALTURA VARIABLE A BASE DE LOSA DE PISO DE CONCRETO ARMADO DE 15CM DE ESPESOR, PAREDES DE CUÑA TRAPEZOIDAL Y APLANADO CON MORTERO CEMENTO-ARENA 1:3 ACABADO FINO, INCLUYE: MANO DE OBRA, EQUIPO, MATERIALES Y HERRAMIENTA. | C78: PZA | D78: 4 | G78: 0
A79: 57 | B79: SUMINISTRO Y COLOCACION DE TAPA DE Fo. Fo. Y FABRICACION DE LOSA TAPA, INCLUYE, ENRRACE Y NIVELACION DE POZO DE VISITA, MATERIALES, MANO DE OBRA, EQUIPO Y HERRAMIENTA. | C79: JGO | D79: 4 | G79: 0
F80: SUB TOTAL RED DE ALCANTARILLADO SANITARIO | G80: =SUM(G72:G79) -> 0
A81: VII.- DESCARGAS DOMICILIARIAS
A82: 58 | B82: EXCAVACION POR MEDIOS MECANICOS DE ZANJAS EN MATERIAL TIPO "II" DE 0 A 2 MTS. DE PROFUNDIDAD, INCLUYE: EQUIPO, HERRAMIENTA, MANO DE OBRA Y MATERIALES. | C82: M3 | D82: 7.875 | G82: =ROUND(D82*E82,2) -> 0
A83: 59 | B83: SUMINISTRO Y COLOCACIÓN DE TUBERÍA DE PVC SANITARIO RD-35 DE 6" DE DIAMETRO (150 MM), INCLUYE: AFINE DE FONDO Y TALUDES DE CEPAS, COMPACTACION DE FONDO EN ZANJAS, SUMINISTRO Y COLOCACION DE CAMA DE ARENA, NIVELACION DE TUBERIA PARA DAR PENDIENTES DE PROYECTO,ACOSTILLADO, SUMINISTRO Y COLOCACION DE CINTA DE PRECAUCION O PELIGRO, MATERIALES, MANO DE OBRA, HERRAMIENTA Y EQUIPO. | C83: ML | D83: 112.5 | G83: 0
A84: 60 | B84: SUMINISTRO Y COLOCACIÓN DE CODO DE PVC SANITARIO RD-35 DE 45° x 6" DE DIAMETRO (45° x150 MM), INCLUYE: MATERIALES, MANO DE OBRA, HERRAMIENTA Y EQUIPO. | C84: PZA | D84: 25 | G84: 0
A85: 61 | B85: SUMINISTRO Y COLOCACIÓN DE SILLETA DE PVC SANITARIO RD-35 DE 6" DE DIAMETRO (150 MM), INCLUYE: MATERIALES, MANO DE OBRA, HERRAMIENTA Y EQUIPO. | C85: PZA | D85: 25 | G85: 0
A86: 62 | B86: SUMINISTRO Y COLOCACIÓN DE ABRAZADERA SIN FIN DE ACERO INOXIDABLE DE 8" DE DIAMETRO (200 MM), INCLUYE: MATERIALES, MANO DE OBRA, HERRAMIENTA Y EQUIPO. | C86: PZA | D86: 50 | G86: 0
A87: 63 | B87: RELLENO COMPACTADO CON EQUIPO MECANICO MANUAL EN CAPAS DE 20 CM EN CEPA CON MATERIAL SELECCIONADO PRODUCTO DE LA EXCAVACION (CRIBADO POR LA MALLA DE 2 1/2") LIBRE DE BOLEO MAYOR DE 3" , COMPACTADO AL 90% PROCTOR. INCLUYE: CRIBADO DEL MATERIAL, ACARREOS DENTRO DE LA OBRA, INCORPORACION DE HUMEDAD, MANO DE OBRA, HERRAMIENTA Y EQUIPO NECESARIO. | C87: M3 | D87: 4.33125 | G87: 0
A88: 64 | B88: RELLENO COMPACTADO CON EQUIPO MECANICO MANUAL EN CAPAS DE 20 CM EN CEPA CON MATERIAL SELECCIONADO PRODUCTO DE BANCO LIBRE DE BOLEO MAYOR DE 3" , COMPACTADO AL 90% PROCTOR. INCLUYE: CRIBADO DEL MATERIAL, ACARREOS DENTRO DE LA OBRA, INCORPORACION DE HUMEDAD, MANO DE OBRA, HERRAMIENTA Y EQUIPO NECESARIO. | C88: M3 | D88: 3.54375 | G88: 0
A89: 65 | B89: CARGA MECANICA Y ACARREO DE MATERIAL PRODUCTO DE LA EXCAVACION DE LAS DESCARGAS DOMICILIARIAS DE ALCANTARILLADO SANITARIO PARA FORMACION DE TERRAPLENES EN VIALIDADES Y EN FORMACION DE PLATAFORMAS, INCLUYE: MANO DE OBRA, EQUIPO Y HERRAMIENTA. | C89: M3 | D89: 3.54375 | G89: 0
A90: 66 | B90: CONSTRUCCION DE REGISTRO DE 0.60 x 0.40 M EN BANQUETA PARA RECIBIR DESCARGA DOMICILIARIA A BASE DE FIRME DE CONCRETO DE 5 CM MUROS DE BLOCK 12 X 20 X 40 CM REPELLADO INTERIOR DE MORTERO CEMENTO-ARENA 1:3 Y TAPA DE CONCRETO. INCLUYE: MARCO Y TAPA | C90: PZA | D90: 25 | G90: 0
F91: SUB TOTAL DESCARGAS DOMICILIARIAS | G91: =SUM(G82:G90) -> 0
A92: VIII.- INSTALACION ELECTRICA DISTRIBUCION SUBTERRANEA (MT)
A93: VIII.I | B93: DESMANTELAMIENTO PARA RED DE DISTRIBUCION AEREA EN MEDIA Y BAJA TENSION PROPIEDAD DE CFE
A94: 67 | B94: RETIRO DE ESTRUCTURA PRIMARIA, SECUNDARIA , EQUIPO Y ACCESORIOS EN POSTE DE MADERA O CONCRETO EXISTENTE PROPIEDAD CFE; INCLUYE: DESMONTE DE ESTRUCTURAS PRIMARIAS, DESMONTE DE ESTRUCTURAS SECUNDARIAS, DESMONTE DE EQUIPO, DESMONTE DE ACCESORIOS, RETIRO DE POSTE, MANEOBRAS DE CARGA Y DESCARGA, TRASLADO DE MATERIALES RETIRADO A ALMACEN PROPORCIONADO POR CFE, SEÑALIZACION DE SEGURIDAD EN BANQUETA Y VIALIDAD PARA ELABORACION DE LOS TRABAJOS, LIMPIEZA DEL LUGAR DE TRABAJO, EQUIPO DE SEGURIDAD PERSONAL, HERRAMIENTA, EQUIPO, TRAMITES ANTE CFE Y TODO LO NECESARIO PARA SU CORRECTA EJECUCION. | C94: PZA | D94: 7 | G94: =+ROUND(D94*E94,2) -> 0
A95: 68 | B95: RETIRO DE LINEA PRIMARIA EN MEDIA TENSION CON SISTEMA 3F-4H O 3F-3H CON CONDUCTOR CALIBRE 477 A 4 EN CU, ACSR O AAC; INCLUYE: DESCONEXION DE CONDUCTOR EN ESTRUCTURAS DE REMATES Y EXTREMOS, RETIRO DE AMARRES EN AISLADORES, DESMONTE Y EMBOBINADO DE CONDUCTOR EN CARRETES DE MADERA, MANEOBRAS DE CARGA Y DESCARGA, TRASLADO DE MATERIALES RETIRADO A ALMACEN PROPORCIONADO POR CFE, SEÑALIZACION DE SEGURIDAD EN BANQUETA Y VIALIDAD PARA ELABORACION DE LOS TRABAJOS, LIMPIEZA DEL LUGAR DE TRABAJO, EQUIPO DE SEGURIDAD PERSONAL, HERRAMIENTA, EQUIPO, TRAMITES ANTE CFE Y TODO LO NECESARIO PARA SU CORRECTA EJECUCION. | C95: ML | D95: 400 | G95: 0
A96: 69 | B96: RETIRO DE LINEA SECUNDARIA EN BAJA TENSION CON SISTEMA 3F-4H O 3F-3H CON CONDUCTOR CALIBRE 3/0 A 2 EN CU, ACC O CONFIGURACION CUADRUPLEX; INCLUYE: DESCONEXION DE CONDUCTOR EN ESTRUCTURAS DE REMATE Y EXTREMOS, RETIRO DE AMARRES EN AISLADORES, DESMONTE Y EMBOBINADO DE CONDUCTOR EN CARRETES DE MADERA, MANEOBRAS DE CARGA Y DESCARGA, TRASLADO DE MATERIALES RETIRADO A ALMACEN PROPORCIONADO POR CFE, SEÑALIZACION DE SEGURIDAD EN BANQUETA Y VIALIDAD PARA ELABORACION DE LOS TRABAJOS, LIMPIEZA DEL LUGAR DE TRABAJO, EQUIPO DE SEGURIDAD PERSONAL, HERRAMIENTA, EQUIPO, TRAMITES ANTE CFE Y TODO LO NECESARIO PARA SU CORRECTA EJECUCION. | C96: ML | D96: 320 | G96: 0
A97: 70 | B97: RETIRO DE ACOMETIDA AEREA EN MEDIA TENSION CON SISTEMA 3F-4H, 2F-3H O 1F-2H CON CONDUCTOR CALIBRE 3/0 A 1/0 EN CU, ACSR O AAC; INCLUYE: DESCONEXION DE CONDUCTOR EN EXTREMOS, RETIRO DE AMARRES EN AISLADORES, DESMONTE Y ENROLLADO DE CONDUCTOR POR ACOMETIDA, MANEOBRAS DE CARGA Y DESCARGA EN CAMION DE TRASLADO, TRASLADO DE MATERIALES RETIRADO A ALMACEN PROPORCIONADO POR CFE, SEÑALIZACION DE SEGURIDAD EN BANQUETA Y VIALIDAD PARA ELABORACION DE LOS TRABAJOS, LIMPIEZA DEL LUGAR DE TRABAJO, EQUIPO DE SEGURIDAD PERSONAL, HERRAMIENTA, EQUIPO, TRAMITES ANTE CFE Y TODO LO NECESARIO PARA SU CORRECTA EJECUCION. | C97: PZA | D97: 5 | G97: 0
A98: 71 | B98: RETIRO DE ACOMETIDA AEREA EN BAJA TENSION CON SISTEMA 3F-4H, 2F-3H O 1F-2H CON CONDUCTOR CALIBRE 3/0 A 6 EN CONFIGURACION TRIPLEX O CUADRUPLEX; INCLUYE: DESCONEXION DE CONDUCTOR EN EXTREMOS, RETIRO DE AMARRES EN AISLADORES, DESMONTE Y ENROLLADO DE CONDUCTOR POR ACOMETIDA, MANEOBRAS DE CARGA Y DESCARGA EN CAMION DE TRASLADO, TRASLADO DE MATERIALES RETIRADO A ALMACEN PROPORCIONADO POR CFE, SEÑALIZACION DE SEGURIDAD EN BANQUETA Y VIALIDAD PARA ELABORACION DE LOS TRABAJOS, LIMPIEZA DEL LUGAR DE TRABAJO, EQUIPO DE SEGURIDAD PERSONAL, HERRAMIENTA, EQUIPO, TRAMITES ANTE CFE Y TODO LO NECESARIO PARA SU CORRECTA EJECUCION. | C98: PZA | D98: 8 | G98: 0
A99: 72 | B99: RETIRO DE SISTEMA DE MEDICION CON ALIMENTACION AEREA EN BAJA TENSION CON SISTEMA 3F-4H, 2F-3H O 1F-2H; INCLUYE: DESCONEXION DE SISTEMA DE MEDICION DE DOMICILIO, DESMONTE Y RETIRO DE BASE DE MEDICION, MANEOBRAS DE CARGA Y DESCARGA, TRASLADO DE MATERIALES RETIRADO A ALMACEN PROPORCIONADO POR CFE, SEÑALIZACION DE SEGURIDAD EN BANQUETA Y VIALIDAD PARA ELABORACION DE LOS TRABAJOS, LIMPIEZA DEL LUGAR DE TRABAJO, EQUIPO DE SEGURIDAD PERSONAL, HERRAMIENTA, EQUIPO, TRAMITES ANTE CFE Y TODO LO NECESARIO PARA SU CORRECTA EJECUCION. | C99: PZA | D99: 8 | G99: 0
A100: 73 | B100: LIBRANZAS NECESARIAS ANTE CFE PARA RETIRO DE RED AEREA EN MEDIA Y BAJA TENSION EXISTENTE PROPIEDAD DE CFE; INCLUYE: PAGOS ANTE CFE POR OBRA ESPECIFICA NECESARIAS EN LIBRANZAS PARA RETIRO DE LA RED AEREA EN MEDIA Y BAJA TENSION EXISTENTE PROPIEDAD DE CFE, TRAMITES Y COORDINACION DE LOS TRABAJOS ANTE CFE, AVISO A USUARIOS AFECTADOS CON 2 DIAS DE ANTICIPACION POR CORTE DE ENERGIA Y TODO LO NECESARIO PARA SU CORRECTA EJECUCION. | C100: LOTE | D100: 1 | G100: 0
F101: SUBTOTAL DESMANTELAMIENTO | G101: =SUM(G94:G100) -> 0
A102: VIII.II | B102: TRANSICION AEREA SUBTERRANEA TRIPOLAR,
A103: 74 | B103: TRANSICION AEREA SUBTERRANEA TRIPOLAR, SENCILLA INCLUYE CUCHILLAS , APARTARRAYOS SINTETICOS DE 12 KV TIPO RISER-POLE MARCA OHIO BRASS, TERMINALES TIPO EXTERIOR TIPO QT-III MARCA 3M, PUENTES, CONEXIÓN Y SISTEMA DE TIERRAS, MANO DE OBRA, HERRAMIENTA Y EQUIPOS, DESPERDICIOS, LIMPIEZA Y TODO LO NECESARIO PARA SU CORRECTA EJECUCIÓN. | C103: JUEGO | D103: 1 | G103: =+ROUND(D103*E103,2) -> 0
F104: SUBTOTAL DE TRANSICION AERO-SUBTERRANEA TRIPOLAR | G104: =SUM(G103) -> 0
A105: VIII.III | B105: OBRA CIVIL PARA RED DE DISTRIBUCION SUBTERRANEA EN MEDIA TENSION
A106: 75 | B106: SUMINISTRO E INSTALACION DE REGISTRO DE MEDIA TENSION EN BANQUETA TIPO 4 CON TAPA CUADRADA GALVANIZADA NORMA CFE RMTB4TC; INCLUYE: EXCAVACION POR MEDIOS MANUALES Y MECANICOS, NIVELACION E INSTALACION DE REGISTRO, RELLENO CON MATERIAL PRODUCTO DE LA EXCAVACION COMPACTADO AL 95%, RETIRO DE MATERIAL SOBRANTE DE EXCAVACION, ETIQUETADO DE REGISTRO EN INTERIOR Y EXTERIOR,REMATADO DE DUCTOS EN REGISTROS A BASE DE MORTERO DOSIFICACION 1:3, PULIDO SOBRE LA CARA INTERIOR DEL REGISTRO POR AMBOS LADOS DEL REGISTRO, INSTALACION DE CORREDERAS, MENSULAS Y TACONES, LIMPIEZA DEL LUGAR DE TRABAJO, SUMINISTRO DE REGISTRO, SUMINISTRO DE CORREDERAS, MENSULAS Y TACONES DE NEUPRENO, SUMINISTRO DE MATERIALES MENORES DE FIJACION PARA CORREDERAS Y MENSULAS (TAQUETES, TUERCAS, GUASAS, CINTILLOS, ETC), HERRAMIENTA, EQUIPO Y LO NECESARIO PARA SU CORRECTA INSTALACION. | C106: PZA | D106: 2 | G106: =+ROUND(D106*E106,2) -> 0
A107: 76 | B107: SUMINISTRO E INSTALACION DE BASE PARA TRANSFORMADOR TRIFASICO DE PEDESTAL DE 75 KVA EN BANQUETA ; INCLUYE: EXCAVACION POR MEDIOS MANUALES Y MECANICOS, NIVELACION E INSTALACION DE REGISTRO, RELLENO CON MATERIAL PRODUCTO DE LA EXCAVACION COMPACTADO AL 95%, RETIRO DE MATERIAL SOBRANTE DE EXCAVACION,REMATADO DE DUCTOS EN REGISTROS A BASE DE MORTERO DOSIFICACION 1:3, PULIDO SOBRE LA CARA INTERIOR DEL REGISTRO POR AMBOS LADOS DEL REGISTRO, SUMINISTRO DE CORREDERAS, MENSULAS Y TACONES DE NEUPRENO, SUMINISTRO DE MATERIALES MENORES DE FIJACION PARA CORREDERAS Y MENSULAS (TAQUETES, TUERCAS, GUASAS, CINTILLOS, ETC), HERRAMIENTA, EQUIPO Y LO NECESARIO PARA SU CORRECTA INSTALACION. | C107: PZA | D107: 1 | G107: =+ROUND(D107*E107,2) -> 0
A108: 77 | B108: SUMINISTRO E INSTALACION DE REGISTRO DE MEDIA TENSION EN BANQUETA TIPO 3 CON ARO Y TAPA 84B POLIMERICO CFE RMTB3; INCLUYE: EXCAVACION POR MEDIOS MANUALES Y MECANICOS, NIVELACION E INSTALACION DE REGISTRO, RELLENO CON MATERIAL PRODUCTO DE LA EXCAVACION COMPACTADO AL 95%, RETIRO DE MATERIAL SOBRANTE DE EXCAVACION, ETIQUETADO DE REGISTRO EN INTERIOR Y EXTERIOR, REMATADO DE DUCTOS EN REGISTROS A BASE DE MORTERO DOSIFICACION 1:3, PULIDO SOBRE LA CARA INTERIOR DEL REGISTRO POR AMBOS LADOS DEL REGISTRO, INSTALACION DE CORREDERAS, MENSULAS Y TACONES, LIMPIEZA DEL LUGAR DE TRABAJO, SUMINISTRO DE REGISTRO, SUMINISTRO DE CORREDERAS, MENSULAS Y TACONES DE NEUPRENO, SUMINISTRO DE MATERIALES MENORES DE FIJACION PARA CORREDERAS Y MENSULAS (TAQUETES, TUERCAS, GUASAS, CINTILLOS, ETC), HERRAMIENTA, EQUIPO Y LO NECESARIO PARA SU CORRECTA INSTALACION. | C108: PZA | D108: 4 | G108: =+ROUND(D108*E108,2) -> 0
A109: 78 | B109: SUMINISTRO E INSTALACION DE BANCO DE DUCTO PRIMARIO DE 3 VIAS POR BANQUETA O ARROYO CON PADC DE 3" NORMA CFE P3B-PADC-3" O P3A-PADC-3"; INCLUYE: EXCAVACION POR MEDIOS MANUALES Y MECANICOS, NIVELACION Y AFINE DE EXCAVACION CON MEDIOS MANUALES, TENDIDO E INSTALACION DE DUCTOS AL INTERIOR DE SANJA, INSTALACION DE CINTA DE PELIGRO, RELLENO CON MATERIAL PRODUCTO DE LA EXCAVACION COMPACTADO AL 95%, RETIRO DE MATERIAL SOBRANTE DE EXCAVACION, LIMPIEZA DEL LUGAR DE TRABAJO, SUMINISTRO DE PADC Y CINTA DE PELIGRO, HERRAMIENTA, EQUIPO Y LO NECESARIO PARA SU CORRECTA INSTALACION. | C109: ML | D109: 60 | G109: =+ROUND(D109*E109,2) -> 0
A110: 79 | B110: SUMINISTRO E INSTALACION DE BANCO DE DUCTO PRIMARIO DE 3 VIAS POR BANQUETA O ARROYO CON PADC DE 2" NORMA CFE P3B-PADC-2" P3A-PADC-2"; INCLUYE: EXCAVACION POR MEDIOS MANUALES Y MECANICOS, NIVELACION Y AFINE DE EXCAVACION CON MEDIOS MANUALES, TENDIDO E INSTALACION DE DUCTOS AL INTERIOR DE SANJA, INSTALACION DE CINTA DE PELIGRO, RELLENO CON MATERIAL PRODUCTO DE LA EXCAVACION COMPACTADO AL 95%, RETIRO DE MATERIAL SOBRANTE DE EXCAVACION, LIMPIEZA DEL LUGAR DE TRABAJO, SUMINISTRO DE PADC Y CINTA DE PELIGRO, HERRAMIENTA, EQUIPO Y LO NECESARIO PARA SU CORRECTA INSTALACION. | C110: ML | D110: 40 | G110: =+ROUND(D110*E110,2) -> 0
F111: SUBTOTAL CIVIL DISTRIBUCION SUBTERRANEA (MT) | G111: =SUM(G106:G110) -> 0
A112: VIII.IV | B112: OBRA ELECTRICA PARA RED DE DISTRIBUCION SUBTERRANEA EN MEDIA TENSION
A113: 80 | B113: SUMINISTRO E INSTALACION DE SISTEMA DE TIERRAS PARA BASE DE TRANSFORMADOR DE MEDIA TENSION PARA COLOCAR TRANFORMADOR PEDESTAL Y CONDUCTORES DE CONEXION; INCLUYE: SUMINISTRO DE ELECTRODOS DE TIERRA, CARGAS AUTOFUNDENTES, CABLE DE CU DESNUDO SEMIDURO Y ZAPATAS DE CONEXION, EXCAVACION POR MEDIOS MANUALES, NIVELACION Y AFINE DE EXCAVACION CON MEDIOS MANUALES, INTRODUCCION DE ELECTRODOS EN TIERRA, TENDIDO E INSTALACION DE CABLE AL INTERIOR DE SANJA, CONEXION SOLDABLE ELECTRODO-CABLE, INSTALACION DE CINTA DE PELIGRO, RELLENO CON MATERIAL PRODUCTO DE LA EXCAVACION COMPACTADO AL 95%, RETIRO DE MATERIAL SOBRANTE DE EXCAVACION, LIMPIEZA DEL LUGAR DE TRABAJO, EQUIPO DE SEGURIDAD PERSONAL, HERRAMIENTA, EQUIPO Y TODO LO NECESARIO PARA SU CORRECTA EJECUCION | C113: PZA | D113: 2 | G113: =+ROUND(D113*E113,2) -> 0
A114: 81 | B114: SUMINISTRO E INSTALACION DE SISTEMA DE TIERRAS EN REGISTRO O POSO DE VISITA DE MEDIA TENSION PARA ALOJAR CONDUCTORES DE PASO; INCLUYE: SUMINISTRO DE ELECTRODOS DE TIERRA, CARGAS AUTOFUNDENTES, CABLE DE CU DESNUDO SEMIDURO Y ZAPATAS DE CONEXION, EXCAVACION POR MEDIOS MANUALES, NIVELACION Y AFINE DE EXCAVACION CON MEDIOS MANUALES, INTRODUCCION DE ELECTRODO EN TIERRA, TENDIDO E INSTALACION DE CABLE AL INTERIOR DE SANJA, CONEXION SOLDABLE ELECTRODO-CABLE, INSTALACION DE CINTA DE PELIGRO, RELLENO CON MATERIAL PRODUCTO DE LA EXCAVACION COMPACTADO AL 95%, RETIRO DE MATERIAL SOBRANTE DE EXCAVACION, LIMPIEZA DEL LUGAR DE TRABAJO, EQUIPO DE SEGURIDAD PERSONAL, HERRAMIENTA, EQUIPO Y TODO LO NECESARIO PARA SU CORRECTA EJECUCION | C114: PZA | D114: 12 | G114: 0
A115: 82 | B115: SUMINISTRO E INSTALACION J6 (6-200) EN 13.2KV; INCLUYE: SUMINISTRO DE MATERILES DE CONEXION EN MEDIA TENSION, , SUMINISTRO DE MATERIALES DE CONEXION A SISTEMA DE TIERRAS, LIMPIEZA DEL LUGAR DE TRABAJO, EQUIPO DE SEGURIDAD PERSONAL, HERRAMIENTA, EQUIPO Y TODO LO NECESARIO PARA SU CORRECTA EJECUCION. | C115: PZA | D115: 3 | G115: 0
A116: 83 | B116: SUMINISTRO E INSTALACION DE MATERIAL PARA CONECTAR TRANSFORMADOR PEDESTAL TRIFASICO EN MEDIA OPERACION RADIAL EN 13.2KV 200A; INCLUYE: SUMINISTRO DE MATERILES DE CONEXION EN MEDIA TENSION(3 CODOS DE OPERACION CON CARGA DE 200 AMPERS,3 CODOS CODOS CON APARTARAYOS DE 200 AMPERS, 3 BOQUILLAS ESTACIONARIAS, 6 BUSHING INSERTO, 3 ADAPTADORES DE TIERRA, 3 TAPONES AISLADOS,3 INDICADORES DE FALLA,20 M DE CABLE DE POTENCIA CALIBRE 1/0, 10 M DE CABLE CCS CALIBRE 19 NO. 9, SUMINISTRO DE MATERIALES DE CONEXION EN BAJA TENSION (10 M CUADRUPLEX DE ALUMINIO CALIBRE (3-3/0+1-3/0), ZAPATAS Y TORNILLERIA) CONEXION DE TRANSFORMADOR EN MEDIA TENSION, CONEXION DE TRANSFORMADOR EN BAJA TENSION, CONEXION DE TRANSFORMADOR A TIERRA, LIMPIEZA DEL LUGAR DE TRABAJO, EQUIPO DE SEGURIDAD PERSONAL, HERRAMIENTA, EQUIPO Y TODO LO NECESARIO PARA SU CORRECTA EJECUCION | C116: PZA | D116: 2 | G116: 0
A117: 84 | B117: SUMINISTRO E INSTALACION DE CABLE XLP 100% EN 15KV CAL. 3/0 AWG DE ALUMINIO; INCLUYE: TENDIDO E INSTALACION DE CONDUCTOR AL INTERIOR DEL DUCTO, ACOMODO Y FIJACION DE CONDUCTOR EN REGISTROS, ETIQUETADO DE CONDUCTOR EN REGISTROS Y EQUIPOS SEGUN NOMENCLATURAS DE CFE, SUMINISTRO DE MATERIALES MENORES DE INSTALACION Y ETIQUETADO (ETIQUETAS, CINTILLOS, CINTA AISLANTE, LUBRICANTE, ETC), SUMINISTRO DE CONDUCTOR, EQUIPO DE SEGURIDAD PERSONAL, LIMPIEZA DEL LUGAR DE TRABAJO, HERRAMIENTA, EQUIPO Y LO NECESARIO PARA SU CORRECTA INSTALACION. | C117: ML | D117: 1200 | G117: 0 | I117: =D117-#REF! ->  | K117: =350000/E117 -> 
A118: 85 | B118: SUMINISTRO E INSTALACION DE CABLE XLP 100% EN 15KV CAL. 1/0 AWG DE ALUMINIO; INCLUYE: TENDIDO E INSTALACION DE CONDUCTOR AL INTERIOR DEL DUCTO, ACOMODO Y FIJACION DE CONDUCTOR EN REGISTROS, ETIQUETADO DE CONDUCTOR EN REGISTROS Y EQUIPOS SEGUN NOMENCLATURAS DE CFE, SUMINISTRO DE MATERIALES MENORES DE INSTALACION Y ETIQUETADO (ETIQUETAS, CINTILLOS, CINTA AISLANTE, LUBRICANTE, ETC), SUMINISTRO DE CONDUCTOR, EQUIPO DE SEGURIDAD PERSONAL, LIMPIEZA DEL LUGAR DE TRABAJO, HERRAMIENTA, EQUIPO Y LO NECESARIO PARA SU CORRECTA INSTALACION. | C118: ML | D118: 400 | G118: 0
A119: 86 | B119: SUMINISTRO E INSTALACION DE CABLE DESNUDO CAL. 2 AWG CONDUCTIVIDAD 30% CALIBRE 7 N0. 9 ACS O CCS;; INCLUYE: TENDIDO E INSTALACION DE CONDUCTOR SUJETO AL INTERIOR DEL DUCTO, ACOMODO DE CONDUCTOR EN REGISTROS Y EQUIPOS, SUMINISTRO DE MATERIALES MENORES DE INSTALACION (CINTILLOS, CINTA AISLANTE, ZAPATAS PONCHABLES, TORNILLERIAS, ETC), SUMINISTRO DE CONDUCTOR, LIMPIEZA DEL LUGAR DE TRABAJO, EQUIPO DE SEGURIDAD PERSONAL, HERRAMIENTA, EQUIPO Y LO NECESARIO PARA SU CORRECTA INSTALACION. | C119: ML | D119: 960 | G119: 0
A120: 87 | B120: SUMINISTRO E INSTALACION DE CAJA DERIVADORA DE 4 VIAS (4-200A) EN 15KV; INCLUYE: FIJACION Y NIVELADO DE CAJA DERIVADORA EN GABINETE O REGISTRO, SUMINISTRO DE MATERIALES MENORES DE INSTALACION Y CONEXION A TIERRA DE CAJA DERIVADORA (ZAPATAS, CONDUCTOR, TAQUETES Y TORNILLERIAS, ETC), SUMINISTRO DE CAJA DERIVADORA, LIMPIEZA DEL LUGAR DE TRABAJO, EQUIPO DE SEGURIDAD PERSONAL, HERRAMIENTA, EQUIPO Y LO NECESARIO PARA SU CORRECTA INSTALACION. | C120: PZA | D120: 6 | G120: 0
A121: 88 | B121: SUMINISTRO E INSTALACION DE BOQUILLA ESTACIONARIA DE 200A EN 15KV; INCLUYE: FIJACION E INSTALACION DE BOQUILLA ESTACIONARIA EN CAJA DERIVADORA, CONEXION A TIERRA, SUMINISTRO DE MATERIALES MENORES DE INSTALACION Y CONEXION A TIERRA DE BOQUIILA ESTACIONARIA (CONECTORES, CABLE THW, ETC), SUMINISTRO DE BOQUILLA ESTACIONARIA, LIMPIEZA DEL LUGAR DE TRABAJO, EQUIPO DE SEGURIDAD PERSONAL, HERRAMIENTA, EQUIPO Y LO NECESARIO PARA SU CORRECTA INSTALACION. | C121: PZA | D121: 15 | G121: 0
A122: 89 | B122: SUMINISTRO E INSTALACION DE TAPON ASILADOR DE 200A EN 15KV; INCLUYE: FIJACION E INSTALACION DE TAPON AISLADOR EN CAJA DERIVADORA, CONEXION A TIERRA, SUMINISTRO DE MATERIALES MENORES DE INSTALACION Y CONEXION A TIERRA DE TAPON AISLADOR (CONECTORES, CABLE THW, ETC), SUMINISTRO DE TAPON AISLADOR, LIMPIEZA DEL LUGAR DE TRABAJO, EQUIPO DE SEGURIDAD PERSONAL, HERRAMIENTA, EQUIPO Y LO NECESARIO PARA SU CORRECTA INSTALACION. | C122: PZA | D122: 50 | G122: 0
A123: 90 | B123: ADAPTADOR DE PANTALLA DE TIERRAS MARCA 3M CONTRACTIL EN FRÍO PARA 3/0 AWG INCLUYE: MATERIALES, ACCESORIOS PARA ATERRIZAMIENTO, MANO DE OBRA, HERRAMIENTA LIMPIEZA Y TODO LO NECESARIO PARA SU CORRECTA INSTALACIÓN | C123: PZA | D123: 18 | G123: =+ROUND(D123*E123,2) -> 0
A124: 91 | B124: ADAPTADOR DE PANTALLA DE TIERRAS MARCA 3M CONTRACTIL EN FRÍO PARA 1/0 AWG INCLUYE: MATERIALES, ACCESORIOS PARA ATERRIZAMIENTO, MANO DE OBRA, HERRAMIENTA LIMPIEZA Y TODO LO NECESARIO PARA SU CORRECTA INSTALACIÓN | C124: PZA | D124: 12 | G124: =+ROUND(D124*E124,2) -> 0
A125: 92 | B125: SUMINISTRO E INSTALACION DE CODO PORTA FUSIBLE DE 200A EN 15KV CALIBRE 1/0 AWG; INCLUYE: ARMADO Y CONEXION DE CODO PORTAFUSIBLE EN CONDUCTOR, INSTALACION DE FUSIBE EN CODO, CONEXION A TIERRA DE CODO Y ADAPTADOR, SUMINISTRO DE MATERIALES MENORES DE INSTALACION Y CONEXION A TIERRA DE CODO PORTA FUSIBLE Y ADAPTADOR (CONECTORES, CABLE THW, ETC), SUMINISTRO DE CODO PORTA FUSIBLE, FUSIBLE Y ADAPTADOR DE TIERRA, LIMPIEZA DEL LUGAR DE TRABAJO, EQUIPO DE SGURIDAD PERSONAL, HERRAMIENTA, EQUIPO Y LO NECESARIO PARA SU CORRECTA INSTALACION. (EL FUSIBLE PUEDE VARIAR SEGUN CAPACIDAD DE SUBESTACION). | C125: PZA | D125: 12 | G125: 0
A126: 93 | B126: SUMINISTRO E INSTALACION DE CODO OPERACION CON CARGA DE 200A EN 15KV CALIBRE 3/0 AWG; INCLUYE: ARMADO Y CONEXION DE CODO EN CONDUCTOR, INSTALACION DE ADAPTADOR A CODO, CONEXION A TIERRA DE CODO Y ADAPTADOR, SUMINISTRO DE MATERIALES MENORES DE INSTALACION Y CONEXION A TIERRA DE CODO Y ADAPTADOR (CONECTORES, CABLE THW, ETC), SUMINISTRO DE CODO OPERACION CON CARGA Y ADAPTADOR DE TIERRA, LIMPIEZA DEL LUGAR DE TRABAJO, EQUIPO DE SEGURIDAD PERSONAL, HERRAMIENTA, EQUIPO Y LO NECESARIO PARA SU CORRECTA INSTALACION. | C126: PZA | D126: 21 | G126: 0
A127: 94 | B127: BUSHING INSERTO CLASE 15-200A .CATALOGO LBI215 MARCA COOPER INCLUYE: MATERIALES, ACCESORIOS PARA ATERRIZAMIENTO, MANO DE OBRA, HERRAMIENTA LIMPIEZA Y TODO LO NECESARIO PARA SU CORRECTA INSTALACIÓN | C127: PZA | D127: 2 | G127: 0
A128: 95 | B128: SUMINISTRO E INSTALACION DE TERMINAL EXTERIOR CONTRACTIL EN FRIO QTIII DE 200A EN 15KV CALIBRE 3/0 AWG; INCLUYE: ARMADO Y CONEXION DE TERMINAL EN CONDUCTOR, CONEXION A TIERRA DE TERMNAL, SUMINISTRO DE MATERIALES MENORES DE INSTALACION Y CONEXION A TIERRA DE TERMINAL (CONECTORES, CABLE THW, ETC), SUMINISTRO DE TERMINAL QTIII, LIMPIEZA DEL LUGAR DE TRABAJO, EQUIPO DE SEGURIDAD PERSONAL, HERRAMIENTA, EQUIPO Y LO NECESARIO PARA SU CORRECTA INSTALACION. | C128: PZA | D128: 9 | G128: 0
A129: 96 | B129: SUMINISTRO E INSTALACION DE INDICADOR DE FALLA DE 200A EN 15KV; INCLUYE: INSTALACION DE INDICADOR EN CONDUCTOR, SUMINISTRO DE MATERIALES MENORES DE INSTALACION (CONECTORES, CABLE THW, ETC), SUMINISTRO DE INDICADOR DE FALLA, LIMPIEZA DEL LUGAR DE TRABAJO, EQUIPO DE SEGURIDAD PERSONAL, HERRAMIENTA, EQUIPO Y LO NECESARIO PARA SU CORRECTA INSTALACION. | C129: PZA | D129: 6 | G129: 0
A130: 97 | B130: SUMINISTRO E INSTALACION DE CANALIZACION, SOPORTERIA Y ACCESORIOS DE MEDIA TENSION PARA SUBESTACION PARTICULAR; INCLUYE: ARMADO Y MONTADO DE ESTRUCTURA DE SOPORTE DE CONDUCTORES EN SUBESTACION, ARMADO Y MONTADO DE DUCTOS EN MURO DE CONSTRUCCION, INSTALACION DE ACCESORIOS DE MEDIA TENSION EN SUBESTACION SEGUN NECESIDAD, SUMINISTRO DE MATERIALES MENORES DE INSTALACION (RIEL UNICANAL, ABRAZADERAS, TUBO GALV, CURVAS PVC, VARILLA ROSCADA, ETC), SUMINISTRO DE DUCTOS, SUMINISTRO DE ACCESORIOS DE MEDIA TENSION NECESARIOS, LIMPIEZA DEL LUGAR DE TRABAJO, EQUIPO DE SEGURIDAD PERSONAL, HERRAMIENTA, EQUIPO Y LO NECESARIO PARA SU CORRECTA INSTALACION. | C130: PZA | D130: 2 | G130: 0
F131: SUBTOTAL ELECTRICA DISTRIBUCION SUBTERRANEA (MT) | G131: =SUM(G113:G130) -> 0
A132: VIII.V | B132: OBRA CIVIL PARA RED DE DISTRIBUCION SUBTERRANEA EN BAJA TENSION
A133: 98 | B133: SUMINISTRO E INSTALACION REGISTRO DE BAJA TENSION PARA BANQUETA TIPO 1 CON TAPA DE POLICONCRETO CFE RBTB1; INCLUYE: EXCAVACION POR MEDIOS MANUALES Y MECANICOS, NIVELACION E INSTALACION DE REGISTRO, RELLENO CON MATERIAL PRODUCTO DE LA EXCAVACION COMPACTADO AL 95%, RETIRO DE MATERIAL SOBRANTE DE EXCAVACION, COLOCACION DE TAPA Y MANIJAS, ETIQUETADO DE REGISTRO EN EXTERIOR,REMATADO DE DUCTOS EN REGISTROS A BASE DE MORTERO DOSIFICACION 1:3, PULIDO SOBRE LA CARA INTERIOR DEL REGISTRO POR AMBOS LADOS DEL REGISTRO , LIMPIEZA DEL LUGAR DE TRABAJO, SUMINISTRO DE REGISTRO, SUMINISTRO DE TAPA POLICONCRETO Y MANIJAS GALVANIZADAS, HERRAMIENTA, EQUIPO Y LO NECESARIO PARA SU CORRECTA INSTALACION. | C133: PZA | D133: 12 | G133: =+ROUND(D133*E133,2) -> 0
A134: 99 | B134: SUMINISTRO E INSTALACION BANCO DE DUCTO SECUNDARIO DE 1 VIAS POR BANQUETA CON PVC DE 2" NORMA CFE S1B-PVC-2"; INCLUYE: EXCAVACION POR MEDIOS MANUALES Y MECANICOS, NIVELACION Y AFINE DE EXCAVACION CON MEDIOS MANUALES, TENDIDO E INSTALACION DE DUCTOS AL INTERIOR DE SANJA, INSTALACION DE CINTA DE PELIGRO, RELLENO CON MATERIAL PRODUCTO DE LA EXCAVACION COMPACTADO AL 95%, RETIRO DE MATERIAL SOBRANTE DE EXCAVACION, LIMPIEZA DEL LUGAR DE TRABAJO, SUMINISTRO DE PADC Y CINTA DE PELIGRO, HERRAMIENTA, EQUIPO Y LO NECESARIO PARA SU CORRECTA INSTALACION. | C134: ML | D134: 80 | G134: =+ROUND(D134*E134,2) -> 0
F135: SUBTOTAL CIVIL DISTRIBUCION SUBTERRANEA (BT) | G135: =SUM(G133:G134) -> 0
A136: VIII.VI | B136: OBRA ELECTRICA PARA RED DE DISTRIBUCION SUBTERRANEA EN BAJA TENSION
A137: 100 | B137: SUMINISTRO E INSTALACION DE SISTEMA DE MEDICION SUBTERRANEO SENCILLO 2F-3H O 1F-2H 100A EN 220V; INCLUYE: INSTALACION Y CONEXION DE SISTEMA DE MEDICION, INSTALACION Y CONEXION DE SISTEMA DE TIERRAS, TENDIDO E INSTALACION DE CANALIZACION FALTANTE DE PREPARACION A BASE DE MEDICION, SUMINISTRO DE MATERIALES MENORES DE INSTALACION Y CONEXION (TAQUETES, PIJAS, CONECTORES, CABLE, ELECTRODO DE TIERRA, TUBERIA, ETC), SUMINISTRO DE BASE DE MEDICION E INTERRUPTOR, LIMPIEZA DEL LUGAR DE TRABAJO, EQUIPO DE SEGURIDAD PERSONAL, HERRAMIENTA, EQUIPO Y LO NECESARIO PARA SU CORRECTA INSTALACION. | C137: PZA | D137: 8 | G137: =+ROUND(D137*E137,2) -> 0
A138: 101 | B138: SUMINISTRO E INSTALACION DE SISTEMA DE TIERRAS EN REGISTRO DE BAJA TENSION; INCLUYE: SUMINISTRO DE ELECTRODO DE TIERRA, CONECTOR, 3M DE CABLE DE CU DESNUDO SEMIDURO CAL. 10, INTRODUCCION DE ELECTRODO EN TIERRA, INSTALACION DE CABLE AL INTERIOR DE REGISTRO, CONEXION SOLDABLE ELECTRODO-CABLE, LIMPIEZA DEL LUGAR DE TRABAJO, EQUIPO DE SEGURIDAD PERSONAL, HERRAMIENTA, EQUIPO Y TODO LO NECESARIO PARA SU CORRECTA EJECUCION | C138: PZA | D138: 12 | G138: 0
A139: =A138+1 -> 102 | B139: SUMINISTRO E INSTALACION DE CONECTOR MULTIPLE 200A 600V DE 6 VIAS; INCLUYE: SUMINISTRO DE CONECTOR MULTIPLE, CONEXION MECANICA DE CONECTOR MULTIPLE A CONDUCTORES, CONEXION A TIERRA EN CONECTOR MULTIPLE DE NEUTRO, LIMPIEZA DEL LUGAR DE TRABAJO, EQUIPO DE SEGURIDAD PERSONAL, HERRAMIENTA, EQUIPO Y TODO LO NECESARIO PARA SU CORRECTA EJECUCION | C139: PZA | D139: 16 | G139: 0
A140: 103 | B140: SUMINISTRO E INSTALACION DE CONECTOR MULTIPLE 200A 600V DE 4 VIAS; INCLUYE: SUMINISTRO DE CONECTOR MULTIPLE, CONEXION MECANICA DE CONECTOR MULTIPLE A CONDUCTORES, CONEXION A TIERRA EN CONECTOR MULTIPLE DE NEUTRO, LIMPIEZA DEL LUGAR DE TRABAJO, EQUIPO DE SEGURIDAD PERSONAL, HERRAMIENTA, EQUIPO Y TODO LO NECESARIO PARA SU CORRECTA EJECUCION | C140: PZA | D140: 8 | G140: 0
A141: 104 | B141: SUMINISTRO E INSTALACION DE CABLE XLP 3+1 (3/0-1/0) EN ALUMINIO AAC PARA 600V 90°C; INCLUYE: TENDIDO E INSTALACION DE CONDUCTOR AL INTERIOR DEL DUCTO, ACOMODO Y FIJACION DE CONDUCTOR EN REGISTROS, ETIQUETADO DE CONDUCTOR EN REGISTROS Y EQUIPOS SEGUN NOMENCLATURAS DE CFE, SUMINISTRO DE MATERIALES MENORES DE INSTALACION Y ETIQUETADO (ETIQUETAS, CINTILLOS, CINTA AISLANTE, LUBRICANTE, ETC), SUMINISTRO DE CONDUCTOR, EQUIPO DE SEGURIDAD PERSONAL, LIMPIEZA DEL LUGAR DE TRABAJO, HERRAMIENTA, EQUIPO Y LO NECESARIO PARA SU CORRECTA INSTALACION. | C141: ML | D141: 740 | G141: 0
A142: 105 | B142: SUMINISTRO E INSTALACION DE CABLE XLP 2+1 (4-4) EN ALUMINIO AAC PARA 600V 90°C; INCLUYE: TENDIDO E INSTALACION DE CONDUCTOR AL INTERIOR DEL DUCTO, ACOMODO Y FIJACION DE CONDUCTOR EN REGISTROS, ETIQUETADO DE CONDUCTOR EN REGISTROS Y EQUIPOS SEGUN NOMENCLATURAS DE CFE, SUMINISTRO DE MATERIALES MENORES DE INSTALACION Y ETIQUETADO (ETIQUETAS, CINTILLOS, CINTA AISLANTE, LUBRICANTE, ETC), SUMINISTRO DE CONDUCTOR, EQUIPO DE SEGURIDAD PERSONAL, LIMPIEZA DEL LUGAR DE TRABAJO, HERRAMIENTA, EQUIPO Y LO NECESARIO PARA SU CORRECTA INSTALACION. | C142: ML | D142: 225 | G142: 0
A143: 106 | B143: SUMINISTRO E INSTALACION DE CANALIZACION Y SOPORTERIA PARA TRANSICION AEREA SUBTERRANEA DE BAJA TENSION 220V; INCLUYE: ARMADO Y MONTADO DE ESTRUCTURA DE SOPORTE DE CONDUCTORES, ARMADO Y MONTADO DE DUCTOS EN POSTE, INSTALACION DE BOTAS TERMOCONTRACTIL EN DUCTO-CONDUCTOR, SUMINISTRO DE MATERIALES MENORES DE INSTALACION (RIEL UNICANAL, ABRAZADERAS, CURVAS PVC, VARILLA ROSCADA, ETC), SUMINISTRO DE HERRAJES, SUMINISTRO DE DUCTOS, LIMPIEZA DEL LUGAR DE TRABAJO, EQUIPO DE SEGURIDAD PERSONAL, HERRAMIENTA, EQUIPO Y LO NECESARIO PARA SU CORRECTA INSTALACION. | C143: PZA | D143: 3 | G143: 0
F144: SUBTOTAL ELECTRICA DISTRIBUCION SUBTERRANEA (BT) | G144: =SUM(G137:G143) -> 0
A145: VIII.VII | B145: PRUEBAS A CABLES DE POTENCIA
A146: 107 | B146: PRUEBAS DE AISLAMIENTO A CABLES, TIPO VLF.INCLUYE PRUEBAS DE AISLAMIENTO CON VLF, QUE CORRESPONDE A CADA CONDUCTOR, CON LA INTENSION QUE SE CUMPLA CON LOS VALORES NOMINALES. SE ENTREGARA INFORME CORREPONDIENTE DE LOS RESULTADOS DE LA PRUEBA | C146: LOTE | D146: 24 | G146: =+ROUND(D146*E146,2) -> 0
F147: SUBTOTAL PRUEBAS DE POTENCIA | G147: =G146 -> 0
A149: VIII.VIII | B149: OBRA ELECTRICA PARA RED DE DISTRIBUCION SUBTERRANEA EN MEDIA TENSION
A150: 108 | B150: SUMINISTRO E INSTALACION DE TRANSFORMADOR DE PEDESTALTRIFASICO DE 75 KVA NORMA K EN ACERO INOXIDABLE EN 13200Y/7621-220Y/127 VOLTS, EN ANILLO OPERACION RADIAL EN 200A; INCLUYE: INSTALACION Y FIJACION DE TRANSFORMADOR EN BASE DE CONCRETO, LIMPIEZA DEL LUGAR DE TRABAJO, SUMINISTRO DE TRANSFORMADOR PEDESTAL, SUMINISTRO DE MATERIALES MENORES DE FIJACION (TAQUETES, TORNILLOS, TACONES, ETC), EQUIPO DE SEGURIDAD PERSONAL, HERRAMIENTA, EQUIPO Y LO NECESARIO PARA SU CORRECTA INSTALACION. | C150: PZA | D150: 2 | G150: =+ROUND(D150*E150,2) -> 0
A151: 84 | B151: SUMINISTRO E INSTALACION DE CABLE XLP 100% EN 15KV CAL. 3/0 AWG DE ALUMINIO; INCLUYE: TENDIDO E INSTALACION DE CONDUCTOR AL INTERIOR DEL DUCTO, ACOMODO Y FIJACION DE CONDUCTOR EN REGISTROS, ETIQUETADO DE CONDUCTOR EN REGISTROS Y EQUIPOS SEGUN NOMENCLATURAS DE CFE, SUMINISTRO DE MATERIALES MENORES DE INSTALACION Y ETIQUETADO (ETIQUETAS, CINTILLOS, CINTA AISLANTE, LUBRICANTE, ETC), SUMINISTRO DE CONDUCTOR, EQUIPO DE SEGURIDAD PERSONAL, LIMPIEZA DEL LUGAR DE TRABAJO, HERRAMIENTA, EQUIPO Y LO NECESARIO PARA SU CORRECTA INSTALACION. | C151: ML | D151: =1790-1200 -> 590 | G151: 0
F152: SUBTOTAL INSTALACION ELECTRICA DISTRIBUCION SUBTERRANEA (MT) | G152: =SUM(G150:G151) -> 0
F153: SUBTOTAL DE RED ELECTROMECANICA | G153: =G101+G104+G111+G131+G135+G144+G147+G152 -> 0
A154: IX.- RED TELEFONIA SUBTERRANEA
A155: 109 | B155: MOVIMIENTO DE RED, POSTERIA DE INFRESTRUCTURA AREA A SUBTERRANEA, CALLE TOPETE, TRAMO MANGUITO A JUAREZ | C155: LOTE | D155: 1 | G155: =+ROUND(D155*E155,2) -> 0
A156: =A155+1 -> 110 | B156: EXCAVASION POR MEDIOS MANUALES DE ZANJAS EN MATERIAL TIPO "II" DE 0.00 A 1.00 MTS. DE PROFUNDIDAD. INCLUYE: EQUIPO HERRAMIENTA, MANO DE OBRA Y MATERIALES | C156: ML | D156: 180 | G156: 0
A157: =A156+1 -> 111 | B157: SUMINISTRO Y COLOCACION DE CINTA DE PRECAUCION O PELIGRO EN TODA LA TUBERIA, INCLUYE: MATERIAL, HERRAMIENTA Y MANO DE OBRA | C157: ML | D157: 180 | G157: 0
A158: 112 | B158: RELLENO DE CEPAS DE RED CON MATERIAL PRODUCTO DE LA EXCAVASION AL 95% PROCTOR, EN CEPAS DE 20 CM. INCLUYE: MATERIALES, MANO DE OBRA, HERRAMIENTA Y EQUIPO | C158: ML | D158: 180 | G158: 0
A159: 113 | B159: COLOCACION DE MINIPOSTE. INCLUYE: MATERIALES , HERRAMIENTA Y MANO DE OBRA Y EQUIPO | C159: PZA | D159: 2 | G159: 0
A160: 114 | B160: EXCAVASION PARA REGISTRO TELEFONICO. INCLUYE: EQUIPO, HERRAMIENTA, MANO DE OBRA | C160: ML | D160: 6 | G160: 0
A161: 115 | B161: SUMINISTRO Y COLOCACION DE TUBERIA DE PVC GRIS DE 2" CED. 40. INCLUYE: MATERIALES, MANO DE OBRA EQUIPO Y HERRAMIENTA. | C161: ML | D161: 450 | G161: 0
A162: 116 | B162: SUMINISTRO Y COLOCACION DE REGISTRO TIPO L2T. INCLUYE: OBRA CIVIL, MATERIALES, MANO DE OBRA, MANIOBRAS Y MAQUINARIA, EQUIPO Y HERRAMIENTA. | C162: PZA | D162: 3 | G162: 0
A163: 117 | B163: SUMINISTRO Y COLOCACION DE REGISTRO TIPO L3T. INCLUYE: OBRA CIVIL, MATERIALES, MANO DE OBRA, MANIOBRAS Y MAQUINARIA, EQUIPO Y HERRAMIENTA. | C163: PZA | D163: 2 | G163: 0
A164: 118 | B164: COLOCACION DE PEDESTAL GRANDE. INCLUYE: MANO DE OBRA, MANIOBRAS Y MAQUINARIA, EQUIPO Y HERRAMIENTA. | C164: PZA | D164: 2 | G164: 0
A165: 119 | B165: COLOCACION DE RADIALES DE MANGUERA POLIDUCTO PVC GRIS DE 3/4" PARA CABLES. INCLUYE : RAFIA, MANO DE OBRA, MANIOBRAS Y MAQUINARIA, EQUIPO Y HERRAMIENTA. | C165: ML | D165: 50 | G165: 0
A166: 120 | B166: SUMINISTRO Y COLOCACION DE CONCRETO F*C=100KG/CM2 PARA ENCONFRADO DE TUBERIA. INCLUYE: MATERIALES MANO DE OBRA, MANIOBRAS Y MAQUINARIA, EQUIPO Y HERRAMIENTA. | C166: ML | D166: 150 | G166: 0
F167: TOTAL DE RED TELEFONIA SUBTERRANEA | G167: =SUM(G155:G166) -> 0
A168: X.- RED TELEVISION SUBTERRANEA
A169: 121 | B169: EXCAVACION POR MEDIOS MANUALES DE ZANJAS EN MATERIAL TIPO "II" DE 0.00 A 1.00 MTS. DE PROFUNDIDAD. INCLUYE EQUIPO HERRAMIENTA, MANO DE OBRA Y MATERIALES | C169: ML | D169: 225 | G169: =+ROUND(D169*E169,2) -> 0
A170: 122 | B170: SUMINISTRO Y COLOCACION DE CINTA DE PRECAUCION O PELIGRO EN TODA LA TUBERIA, INCLUYE MATERIAL, HERRAMIENTA Y MANO DE OBRA | C170: ML | D170: 225 | G170: =+ROUND(D170*E170,2) -> 0
A171: 123 | B171: RELLENO DE CEPAS DE RED CON MATERIAL PRODUCTO DE LA EXCAVASION AL 95% PROCTOR, EN CEPAS DE 20 CM. INCLUYE MATERIALES, MANO DE OBRA, HERRAMIENTA Y EQUIPO | C171: ML | D171: 225 | G171: =+ROUND(D171*E171,2) -> 0
A172: 124 | B172: COLOCACION DE TUBERIA DE PVC GRIS DE 2". INCLUYE MATERIALES, MANO DE OBRA EQUIPO Y HERRAMIENTA. | C172: ML | D172: 45 | G172: =+ROUND(D172*E172,2) -> 0
F173: TOTAL DE RED DE TELEVISION SUBTERRANEA | G173: =SUM(G169:G172) -> 0
A174: XI.- INSTALACIONES ELECTRICAS TRAMO MANGUITO A CALLE JUAREZ (2DA ETAPA)
A175: XI.I | B175: PRELIMINARES ELECTRICOS 2DA ETAPA
A176: 125 | B176: SUMINISTRO Y COLOCACION DE TAPA 84B Y FABRICACION DE LOSA TAPA, INCLUYE: DEMOLICION DE LOZA EXISTENTE DE REGISTRO DE MEDIA TENSION DE TAPA REDONDA, COLOCACION DE TAPA PREFABRICADA 84B, FABRICACION DE NUEVA LOSA CON RESPECTO A NIVEL DE CALLE,MATERIALES, MANO DE OBRA, EQUIPO Y HERRAMIENTA. | C176: LOTE | D176: 3 | G176: =ROUND(D176*E176,2) -> 0
F177: SUBTOTAL PRELIMINARES ELECTRICOS 2DA ETAPA | G177: =SUM(G176:G176) -> 0
A178: XI.II | B178: ALUMBRADO PUBLICO
A179: 126 | B179: SUMINISTRO E INSTALACION DE TUBERÍA CONDUIT DE PVC PARED GRUESA, DE 2" DE DIAMETRO. PARA PREPARACION DE INSTALACION ELECTRICA EN ALUMBRADO PUBLICO. INCLUYE: EXCAVACION, COLOCACION DE TUBERIA, MATERIAL DIVERSO DE INSTALACION, CONEXION AL REGISTRO ELECTRICO, ELEMENTOS DE PROTECCION EN LOS EXTREMOS PARA EVITAR LA INTRODUCCION DE CUALQUIER MATERIAL, MANO DE OBRA, HERRAMIENTA Y EQUIPO. | C179: ML | D179: 310 | G179: =ROUND(D179*E179,2) -> 0
A180: 127 | B180: SUMINISTRO Y COLOCACION DE BASE PREFABRICADA TRAPEZOIDAL DE CONCRETO DE 40x40 EN CORONA Y 80x80 EN BASE, CON ALTURA DE 120 Cm., F´c=200 Kg/Cm2 ARMADA CON VARILLA N° 3 Y 4 SEGÚN (VER DETALLE EN PLANOS), INCLUYE: MANIOBRAS Y MAQUINARIA PARA EXTRAER AGUA DEL CANAL EN CASO DE SER NECESARIO. | C180: PZA | D180: 9 | G180: 0
A181: 128 | B181: SUMINISTRO Y COLOCACIÓN DE LUMINARIO DE LED DE 100 WATTS MODELO LUMA 2 MARCA FORLIGHTING PREMIUM, TERMINADA CON PINTURA ELECTROSTATICA, PARA MAYOR EFICIENCIA Y CONTROL DE LUZ , SE INCLUYE: ELEMENTOS DE FIJACIÓN Y CONEXIÓN, ANEXAR HOJA DE CERTIFICACIÓN NOM-064-SCFI., CONSIDERAR CARGO DIRECTO POR EL COSTO DE MANO DE OBRA Y MATERIALES REQUERIDOS, FLETE A OBRA, ACARREO, COPLE, FIJACIÓN, LIMPIEZA Y RETIRO DE SOBRANTES FUERA DE OBRA, EQUIPO DE SEGURIDAD, INSTALACIONES ESPECÍFICAS, DEPRECIACIÓN Y DEMÁS CARGOS DERIVADOS DEL USO DE EQUIPO Y HERRAMIENTA, EN CUALQUIER NIVEL. | C181: PZA | D181: 9 | G181: 0
A182: 129 | B182: SUMINISTRO Y COLOCACIÓN DE POSTE DE Fe. (CAL. 11) OCTAGONAL CÓNICO GALVANIZADO DE 9 METROS DE ALTURA, SE INCLUYE CABLE INTERIOR THHW CALIBRE No 10 AWG 90°C (TRES HILOS) POR LAMPARA,BRAZO DE 1.80 METROS DE LARGO, INCLUYE CARGO DIRECTO POR EL COSTO DE MANO DE OBRA Y MATERIALES REQUERIDOS, FLETE A OBRA, ACARREO, COPLE, TRAZO, COLOCACIÓN, GUÍA DE ALAMBRE GALVANIZADO CALIBRE 14, FIJACIÓN, LIMPIEZA Y RETIRO DE SOBRANTES FUERA DE OBRA, EQUIPO DE SEGURIDAD, INSTALACIONES ESPECÍFICAS, DEPRECIACIÓN Y DEMÁS CARGOS DERIVADOS DEL USO DE EQUIPO Y HERRAMIENTA, EN CUALQUIER NIVEL. | C182: PZA | D182: 9 | G182: 0
A183: 130 | B183: SUMINISTRO Y COLOCACIÓN DE REGISTRO ELÉCTRICO PREFABRICADO DE 40x40x60 Cm, A BASE DE CONCRETO F'c = 150 Kg/Cm2. T.M.A. 3/4". REV. DE 8 A 10 CMS. CON UN ESPESOR DE 10 CMS. PISO DE GRAVA, APLANADO INTERIOR PULIDO FINO, MARCO Y CONTRAMARCO METALICOS GALVANIZADOS ÁNGULO 1 1/2"x 1/4" Y TAPA DE CONCRETO ARMADO CON VARILLA CORRUGADA ALTA RESISTENCIA DEL No.2 @ 10 CMS. AMBOS SENTIDOS SOLDADAS, F'c = 250 Kg/Cm2. T.M.A. 3/4". REVENIMIENTO DE 8 A 10 CMS. INCLUYE: EXCAVACION EN TERRENO INVESTIGADO EN SITIO, RELLENO COMPACTADO AL 90% MINIMO, CON MATERIAL SELECCIONADO PRODUCTO DE LA EXCAVACIÓN LIBRE DE BOLEO MAYOR DE 3", NIVELADO A N.P.T., MANIOBRAS, MATERIALES, MANO DE OBRA, HERRAMIENTA Y EQUIPO NECESARIO | C183: PZA | D183: 9 | G183: 0
A184: 131 | B184: SUMINISTRO Y COLOCACIÓN DE CABLE DE ALUMINIO TRIPLEX XLP No. (2-2+1-2 ) (SUBTERRANEO) EN CANALIZACIÓN ELÉCTRICA, INCLUYE CARGO DIRECTO POR EL COSTO DE MANO DE OBRA Y MATERIALES REQUERIDOS, FLETE A OBRA, ACARREO, CORTE, COLOCACIÓN, CINTA AISLANTE, CINTA VULCANIZABLE, CONECTORES PONCHABLES BIMETALICOS (PUROS) EN CALIBRE ADECUADO, FIJACIÓN, LIMPIEZA Y RETIRO DE SOBRANTES FUERA DE OBRA, EQUIPO DE SEGURIDAD, INSTALACIONES ESPECÍFICAS, DEPRECIACIÓN Y DEMÁS CARGOS DERIVADOS DEL USO DE EQUIPO Y HERRAMIENTA, EN CUALQUIER NIVEL. | C184: ML | D184: 310 | G184: 0
A185: 132 | B185: SUMINISTRO Y COLOCACIÓN DE CONTACTOR DE COMBINACION DE ALUMBRADO MONOFÁSICO, 220 VOLTS., 30 AMPERES, BOBINA DE CONTROL 127 VOLTS., MARCA SIEMENS INCLUYE: GABINETE MULTIPROPÓSITO PARA SOBREPONER NEMA 3R, FOTOCELDA CON CABLEADO DE CONTROL Y CONEXIÓN A CIRCUITO DE ALUMBRADO, INCLUYE CARGO DIRECTO POR EL COSTO DE MANO DE OBRA Y MATERIALES REQUERIDOS, FLETE A OBRA, ACARREOS, COPLE, TRAZO, CORTE, COLOCACIÓN, GUÍA DE ALAMBRE GALVANIZADO CALIBRE 14, FIJACIÓN, LIMPIEZA Y RETIRO DE SOBRANTES FUERA DE OBRA, EQUIPO DE SEGURIDAD, INSTALACIONES ESPECÍFICAS, DEPRECIACIÓN Y DEMÁS CARGOS DERIVADOS DEL USO DE EQUIPO Y HERRAMIENTA, EN CUALQUIER NIVEL. | C185: PZA | D185: 1 | G185: 0
A186: 133 | B186: SUMINISTRO Y COLOCACIÓN DE CENTRO DE CARGA SQUARE D NEMA 3R MONOFÁSICO 120/240 VOLTS., 8 ESPACIOS Y BARRAS DE 100 AMPERES, CAJA 3 R Y ZAPATAS PRINCIPALES, CATALOGO QO816L100S, INCLUYE CARGO DIRECTO POR EL COSTO DE MANO DE OBRA Y MATERIALES REQUERIDOS, FLETE A OBRA, ACARREO, COPLE, TRAZO, CORTE, COLOCACIÓN, GUÍA DE ALAMBRE GALVANIZADO CALIBRE 14, FIJACIÓN, LIMPIEZA Y RETIRO DE SOBRANTES FUERA DE OBRA, EQUIPO DE SEGURIDAD, INSTALACIONES ESPECÍFICAS, DEPRECIACIÓN Y DEMÁS CARGOS DERIVADOS DEL USO DE EQUIPO Y HERRAMIENTA, EN CUALQUIER NIVEL. | C186: PZA | D186: 1 | G186: 0
A187: 134 | B187: SUMINISTRO Y COLOCACIÓN DE INTERRUPTOR TERMO MAGNÉTICO QO DE DOS POLOS DE 15 A 50 AMPERES, MARCA SQUARE D. | C187: PZA | D187: 1 | G187: 0
A188: 135 | B188: SUMINISTRO DE MATERIALES Y CONSTRUCCIÓN DE MURETE MT - 3 TIPO C, UN FRENTE, DE UN METRO INTERIOR POR 2 METROS DE ALTO Y 40 CM. DE PROFUNDIDAD, A BASE DE BLOQUE DE CEMENTO DE 15X20X40 CM. ASENTADO CON MORTERO CEMENTO - ARENA 1:3, APLANADO PULIDO FINO, PISO DE GRAVA, PINTADO A DOS MANOS EN COLOR INDICADO POR SUPERVISIÓN, POR UNIDAD DE OBRA TERMINADA, MANIOBRAS Y MAQUINARIA PARA EXTRAER AGUA DEL CANAL EN CASO DE SER NECESARIO. | C188: PZA | D188: 1 | G188: 0
A189: 136 | B189: SUMINISTRO Y COLOCACIÓN DE BASE DE MEDICIÓN MS - 03 MONOFÁSICA 220/127 VOLTS., COMPLETA, TIPO SUBTERRANEA CABLEADA CON TRES CABLES CALIBRE 6 AWG PARA FASES Y NEUTRO, INTERRUPTOR PRINCIPAL 2X30, VARILLA DE TIERRA, PUERTA DE LAMINA DE O.8 X O.6 MT DE DOS HOJAS PARA CANDADO, CAL 16 CON MARCO DE ANGULO DE 1/ 1/2" X 1/8" CON RECUBRIMIENTO PRIMARIO Y ACABADO, MANO DE OBRA, HERRAMIENTA, EQUIPO Y TODO LO NECESARIO PARA SU CORRECTA CONSTRUCCIÓN. MATERIAL DIVERSO DE INSTALACIÓN Y FIJACIÓN. | C189: PZA | D189: 1 | G189: 0
A190: 137 | B190: SUMINISTRO Y COLOCACIÓN DE PROTECCIÓN METÁLICA EN MURETE DE MEDICIÓN A BASE DE ÁNGULO Y LÁMINA ESTRIADA. SECCIÓN SEGÚN DIMENSIONES DE MURETE, INCLUYE PINTURA ANTICORROSIVA Y DE ESMALTE EN COLOR INDICADO POR SUPERVISOR, BISAGRAS, CANDADO, MATERIALES, MANO DE OBRA, HERRAMIENTA Y EQUIPO. | C190: PZA | D190: 1 | G190: 0
A191: 138 | B191: PAGO DE UNIDAD DE VERIFICACIÓN CERTIFICADO POR LA SECRETARIA DE ENERGÍA, AVALANDO LA INSTALACIÓN ELÉCTRICA DEL SISTEMA DE ALUMBRADO. | C191: LOTE | D191: 1 | G191: 0
A192: 139 | B192: TRAMITES ANTE LA COMISIÓN FEDERAL DE ELECTRICIDAD PAGO DEL DEPOSITO EN GARANTIA DEL CONTRATO A NOMBRE DEL H. AYUNTAMIENTO. | C192: TRAMITE | D192: 1 | G192: 0
F193: SUB TOTAL ALUMBRADO PUBLICO | G193: =SUM(G179:G192) -> 0
F194: TOTAL INSTALACIONES ELECTRICAS TRAMO MANGUITO A CALLE JUAREZ (2DA ETAPA) | G194: =G193+G177 -> 0
A195: XII.- TERRACERIAS
A196: 140 | B196: TRAZO Y NIVELACION DE TERRACERIAS, AL AMPARO DE ESTE CONCEPTO EL CONTRATISTA DE ACUERDO A LOS PLANOS DE PROYECTO QUE LE SEAN SUMINISTRADOS, HARA EL TRAZO Y NIVELACION CON EQUIPO DE TOPOGRAFIA DE LOS EJES, LIMITES Y DETALLES CONSTRUCTIVOS DE LOS TRABAJOS. DEBERA COLOCAR REFERENCIAS FIJAS, FUERA DE LAS AREAS DE LOS TRABAJOS PARA ASEGURAR LOS ALINEAMIENTOS Y NIVELES. INCLUYE: LOS MATERIALES, MANO DE OBRA, HERRAMIENTA Y EQUIPO NECESARIO. | C196: M2 | D196: =260*8.1 -> 2106 | G196: =ROUND(D196*E196,2) -> 0
A197: 141 | B197: EXCAVACION Y/O CORTE POR MEDIOS MECANICOS EN TERRENO CON CUALQUIER CLASIFICACION PARA LA ELABORACION DE CAJA, CON ESPESOR VARIABLE PARA DAR EL NIVEL DE SUBRASANTE. INCLUYE: ESCARIFICADO, ACAMELLONADO DEL MATERIAL PARA SER RETIRADO, Y EL EQUIPO NECESARIO. | C197: M3 | D197: 1369 | G197: 0
A198: 142 | B198: CARGA Y ACARREO POR MEDIOS MECANICOS DEL MATERIAL PRODUCTO DEL CORTE NO UTILIZABLE PARA EL PRIMER KILOMETRO DE DISTANCIA. INCLUYE EL EQUIPO NECESARIO. | C198: M3 | D198: =D197*1.3 -> 1779.7 | G198: 0
A199: 143 | B199: ACARREO EN CAMION DEL MATERIAL PRODUCTO DEL CORTE PARA KILOMETROS SUBSECUENTES. (6 KM). INCLUYE: EL EQUIPO NECESARIO. | C199: M3-KM | D199: =D198*6 -> 10678.2 | G199: 0
A200: 144 | B200: TRATAMIENTO Y /O MEJORAMIENTO DE TERRACERIAS EN CAPA SUBRASANTE PARA DAR NIVELES DE PROYECTO DEFINITIVIOS. INCLUYE: ESCARIFICADO EN UNA CAPA DE 30 CMS, PAPEO DEL MATERIAL MAYOR A 3" MANUAL, CONFORMACION DE LA CAPA SUBRASANTE, INCORPORACION DE HUMEDAD OPTIMA, TENDIDO, AFINE Y COMPACTACION AL 95% DE SU PVSM DE LA PRUEBA PROCTOR MODIFICADA (ASSHTO), EN UN ESPESOR DE 30 CM, EN TERRENO CON CUALQUIER CLASIFICACION. INCLUYE: MAQUINARIE, EQUIPO, HERRAMIENTA, LA MANO DE OBRA Y TODO LO NECESARIO PARA SU CORRECTA ELABORACIONO. | C200: M2 | D200: =D196*0.75 -> 1579.5 | G200: 0
A201: 145 | B201: FORMACION DE TERRAPLEN CON MATERIAL DE BANCO, PARA DAR NIVEL DE SUBRASANTE, INCLUYE ESCARIFICADO, PAPEO MANUAL, CONFORMACION DE LA SUBRASANTE, INCORPORACION DE HUMEDAD OPTIMA, TENDIDO, AFINE Y COMPACTACION AL 95% DE SU PVSM DE LA PRUEBA PROCTOR MODIFICADA (ASSHTO). | C201: M3 | D201: =D196*0.3*0.25 -> 157.95 | G201: 0
A202: 146 | B202: SUMINISTRO Y COLOCACION DE TUBO DE PVC HIDRAULICO SERIE INGLESA RD 32.5 DE 18" (450 MM) DE DIAMETRO, INCLUYE: RETIRO DE TUBO EXISTENTE, EXCAVACION, AFINE DE FONDO Y TALUDES DE CEPAS, COMPACTACION DE FONDO EN ZANJAS, SUMINISTRO Y COLOCACION DE CAMA DE ARENA, NIVELACION DE TUBERIA PARA DAR PENDIENTES DE PROYECTO, SUMINISTRO Y COLOCACION DE CINTA DE PRECAUCION O PELIGRO, ACOSTILLADO, RELLENO COMPACTADO CON MATERIAL DE BANCO, MATERIALES, MANO DE OBRA, EQUIPO Y HERRAMIENTA. | C202: ML | D202: 10 | G202: 0
F203: SUB TOTAL TERRACERIAS | G203: =SUM(G196:G202) -> 0
A204: XIII.- PAVIMENTACION
A205: 147 | B205: TRAZO Y NIVELACION TOPOGRAFICA DEL TERRENO PARA PAVIMENTACION. AL AMPARO DE ESTE CONCEPTO EL CONTRATISTA REALIZARA EL LEVANTAMIENTO TOPOGRAFICO DE LA SUPERFICIE EXISTENTE PREVIO AL INICIO DE LOS TRABAJOS, EL TRAZO Y NIVELACION CON EQUIPO DE TOPOGRAFIA DE LOS EJES, LIMITES, REFERENCIAS, MOJONERAS, BANCOS DE NIVEL Y DETALLES CONSTRUCTIVOS DE LOS TRABAJOS. (RESPETANDO EL NIVEL DE LA RASANTE EXISTENTE DURANTE TODAS LAS ETAPAS DEL PROCESO CONSTRUCTIVO), DEBERA COLOCAR REFERENCIAS FIJAS, FUERA DE LAS AREAS DE LOS TRABAJOS PARA ASEGURAR LOS ALINEAMIENTOS Y NIVELES. INCLUYE: LOS MATERIALES, HILO PLÁSTICO, MADERA, CALHIDRA, CONCRETO PARA MOJONERAS, MANO DE OBRA, HERRAMIENTA, EQUIPO NECESARIO Y VERIFICACIÓN EN TODO EL PROCESO DE LA OBRA. | C205: M2 | D205: =260*8.1 -> 2106 | G205: =ROUND(D205*E205,2) -> 0
... 37 more rows
